Workbook

Sheet Istruzioni
C2: Istruzioni per la compilazione della Mappa criticità-interventi
C3: La “Mappa criticità-interventi” (di seguito Mappa) è costituita da cinque fogli di calcolo, di cui solo tre sono compilabili dall’utente (evidenziati dalla linguetta della scheda di colore blu).
C4: · Foglio “Istruzioni”
C5: · Foglio “Input tabelle”
C6: · Foglio “Criticità & Indicatori” (compilabile)
C7: · Foglio “Alternative & Selezioni” (compilabile)
C8: · Foglio “Cronoprogramma 2016-2019” (compilabile)
C9: Il colore della cella ad intestazione di ciascuna tabella indica se il dato si riferisce alla precedente programmazione 2014-2017 o alla nuova programmazione 2016-2019
D10: Dati PdI 2016-2019
D11: Dati PdI 2014-2017
C13: 1. Intestazione dei fogli di calcolo
C14: In ciascun foglio della Mappa, in testa alle tabelle, è presente una sezione di informazioni generali dove si chiede l' indicazione di ATO, Ente di Governo d’Ambito e Soggetto Gestore per il quale è stata fatta la predisposizione tariffaria, con i rispettivi codici identificativi (ID) assegnati in sede di registrazione nell’anagrafica dell’AEEGSI. Compilando questa sezione nel primo foglio della Mappa (Criticità & Indicatori), le medesime informazioni verranno automaticamente aggiornate negli altri due fogli compilabili.
C20: 2. Voci foglio di calcolo "Criticità & Indicatori"
C21: Questo foglio di calcolo è organizzato in modo tale da raccogliere le informazioni più puntuali richieste ai Capitoli 2 e 3 dello schema tipo di cui all'Allegato A alla determina 2/2016/DSID. Ciascuna riga compilabile della tabella corrisponde ad una criticità individuata dall'EGA (è stato previsto un numero di righe sufficiente a raccogliere eventualmente tutte le criticità possibili). Per criticità ancora sussistenti ripetto alla precedente pianificazione (2014-2017), sono previsti appositi riferimenti (es. "Criticità AEEGSI ex-determina 3/2014/DSID" e "Valori obiettivo PdI 2014-2017").
C22: Di seguito alcune informazioni più puntuali su specifiche voci del foglio
C24: Criticità AEEGSI e sotto-area criticità 2016-2019 ex determina 2/2016/DSID | D24: Inserire il codice delle criticità specifiche e delle sotto-aree corrispondenti utilizzando esclusivamente il menù a tendina predisposto
C25: Criticità AEEGSI ex determina 3/2014/DSID | D25: Inserire il codice delle criticità utilizzando esclusivamente il menù a tendina predisposto
C26: Località interessata/e criticità | D26: Indicare i confini amministrativi ( es. Comune/i, Provincia/e, ATO) o geografici (es. valle, pianura, bacino)
C27: Popolazione interessata criticità (ab.) | D27: Coerentemente alla località interessata dalla criticità, dare evidenza del numero di abitanti interessati (effettivamente rilevati o stimati o eventualmente facendo riferimento ai dati Istat).
C28: rilevata/stimata | D28: Nella valutazione della popolazione interessata dalla criticità, si distingue se il dato è rilevato o stimato
C29: Indicatore di performance utilizzato | D29: Nome dell'indicatore o breve descrizione (es. "Stato degli impianti")
C30: Formula [Unità di misura] | D30: Es. "popolazione servita/popolazione totale (%)"
C32: Grado di attendibilità indicatore | D32: La valutazione del grado di attendibilità segue l'omonima classificazione per codice numerico contenuta nello Schema-tipo. Il valore 1 raccoglie tutti gli indicatori costituiti da grandezze effettivamente rilevate, il valore 2 raccoglie gli indicatori "ibridi" (costruiti a partire da grandezze in parte stimate o riprese dalla letteratura tecnica-scientifica), mentre il valore 3 riguarda gli indicatori costituiti da sole grandezze stimate.
C34: 3. Voci foglio di calcolo "Alternative & Selezione"
C35: In questo foglio di calcolo sono raccolte le informazioni contenute nel Capitolo 4 dello Schema-tipo ("Strategie di intervento ed analisi delle opzioni progettuali"). Come per il foglio precedente, anche in questa tabella ciascuna riga rappresenta la criticità individuata (eventualmente replicata più volte in caso siano selezionati più interventi per risolverla), per la quale è stata condotta l'analisi delle opzioni alternative. In via previsionale, sono state inserite fino a un massimo di 10 opzioni progettuali alternative percorribili. [Nota: può accadere sia che per piu' criticita' venga selezionato il medesimo intervento, sia che per la stessa criticita' vengano selezionati piu' interventi riportati su più righe]
C36: Di seguito alcune informazioni più puntuali su specifiche voci del foglio
C38: ID Intervento pianificato | D38: Indicare un numero progressivo (1,2,3,..) che permetta di identificare univocamente ciascun singolo intervento soggetto ad analisi delle opzioni alternative.
C39: Titolo intervento | D39: Si richiede un’indicazione sintetica, eventualmente anche mediante l’utilizzo di parole chiave (es. realizzazione nuovo potabilizzatore, efficientamento impianto sollevamento etc.).
C40: Costo totale intervento | D40: Si chiede di indicare il costo totale dell'intervento previsto per il quadriennio 2016-2019.
C41: Popolazione interessata intervento (ab) | D41: Dare evidenza del numero di abitanti interessati dall'intervento (effettivamente rilevati, stimati o eventualmente facendo riferimento ai dati Istat). In coerenza con la voce "Popolazione interessata dalla criticità", tale valore non può essere maggiore di quest'ultimo.
C42: Livello obiettivo finale | D42: Si intende il livello obiettivo che si prevede raggiungere a conclusione dell'intervento pianificato.
C43: Opzione 0 | D43: Definire in questa voce (se considerata) solo la situazione in assenza di realizzazione dell'intervento.
C44: Costo previsto opzione 0 | D44: La misura del costo dell'Opzione 0 ad esempio può essere espressa in termini di costo potenziale (es. costo della multa) o in termini di costo per manutenzioni straordinarie.
C45: Opzione n | D45: Come per la voce dell'intervento pianificato, si richiede un'indicazione sintetica o per parole chiave delle opzioni progettuali alternative. Con riferimento al costo, alla popolazione interessata, al livello obiettivo, vedere le medesime voci specificate per l'intervento.
C48: 4. Voci foglio di calcolo "Cronoprogramma 2016-2019"
C49: Questo foglio rappresenta la sintesi della fase conclusiva del procedimento di pianificazione degli interventi per il quadriennio 2016-2019, la cui descrizione è contenuta nel Capitolo 5 dello Schema-tipo. Il foglio dà altresì evidenza degli eventuali scostamenti di cui al Capitolo 6 (sia con riferimento agli investimenti realizzati negli anni 2014-2015 che programmati negli anni 2016-2017). Rispetto ai fogli precedenti, la logica di allocazione delle criticità e dei costi nel Cronoprogramma 2016-2019 avviene per singolo intervento. La tabella contiene 250 righe, ma viene concessa la possibilità di aggiungere o eliminare righe tramite appositi pulsanti (non è possibile aggiungere righe manualmente). [Nota: nel caso in cui un intervento risolva più criticità, occorre replicarlo su più righe in numero corrispondente alle criticità risolte]
C50: Di seguito alcune informazioni più puntuali su specifiche voci del foglio
C52: ID Intervento pianificato | D52: Indicare un numero progressivo (1,2,3,..) che permetta di identificare univocamente ciascun singolo intervento soggetto ad analisi delle opzioni alternative, in coerenza con la rispettiva voce del foglio "Alternative & Selezioni". Nel caso in cui nel Cronoprogramma si sia reso necessario scorporare l'intervento in n sotto-interventi (ad esempio a livello territoriale), in ragione della differente entrata in esercizio, l'ID di riferimento dovrà essere scomposto in maniera coerente (es. 1.1, 1.2, 1.3,.., 1.n).
C53: Titolo intervento | D53: Deve coincidere con quella indicata nel foglio "Alternative & Selezioni".
C54: Intervento presente nel PdI 2014-2017? | D54: Indicare se l'intervento riportato era già stato programmato nel precedente PdI 2014-2017; la scelta è limitata da un apposito menù a tendina.
C55: Popolazione interessata criticità (ab) | D55: Deve coincidere con l'omonimo valore indicato nel foglio "Criticità & Indicatori".
C56: Rilevata/stimata | D56: Segue lo stesso sistema di valutazione del "Grado di affidabilità popolazione criticità" contenuto nel foglio "Criticità & Indicatori".
C57: Località interessata/e criticità | D57: Indicare i confini amministrativi ( es. Comune/i, Provincia/e, ATO) o geografici (es. valle, pianura, bacino) su cui impatta l'intervento selezionato. Non deve/devono essere più estesa/e dell'area che subisce la criticità.
C58: Iter autorizzativo concluso? | D58: Fa riferimento all’eventuale necessità di permessi, nulla osta, altre eventuali autorizzazioni. Nel caso l’intervento non necessiti di alcuna autorizzazione, selezionare la voce N.A. (non applicabile).
C59: Stadio di progettazione/esecuzione | D59: Indica il livello di maturità degli interventi pianificati; la scelta è limitata da un apposito menù a tendina.
C60: Livello obiettivo PdI 2014-2017 | D60: Tale valore si riferisce agli anni 2016 e 2017; se non si dispone del valore disaggregato per i due anni di pianificazione compilare solo la cella relativa all'anno cui fa riferimento il valore obiettivo finale dell'indicatore.
C61: Livello obiettivo PdI 2016-2019 | D61: Se non si dispone del valore disaggregato per i quattro anni di pianificazione compilare solo la cella relativa all'anno cui fa riferimento il valore obiettivo finale dell'indicatore.
C62: Post-2019 | D62: Questa voce si applica nell'eventualità in cui la risoluzione della criticità sia prevista in un anno successivo al 2019, così come il raggiungimento del valore obiettivo. In questo caso si richiede anche di indicare l'anno di raggiungimento di tale valore (la cella "Anno?" è compilabile).
C63: Investimento realizzato | D63: Tale voce fa riferimento alla realizzazione degli interventi la cui spesa nel precedente ciclo di pianificazione (2014-2017) era stata imputata nel solo biennio 2014-2015, in coerenza con l'art. 11 dell'Allegato A alla delibera 664/2015/R/IDR.
C64: Investimento pianificato PdI 2014-2017 | D64: Tale voce fa riferimento agli investimenti che nel precedente PdI erano stati pianificati negli anni 2016 e 2017, che si sovrappongono con i primi due anni del nuovo ciclo di pianificazione.
C65: Investimento pianificato PdI 2016-2019 | D65: E’ possibile imputare solo l’importo per le singole annualità. Il foglio elabora automaticamente la somma sia per la quota finanziata con tariffa sia per la quota finanziata con contributo pubblico.

Sheet Input tabelle
C2: Input fogli di calcolo
C4: Criticità AEEGSI ex determina 2/2016/DSID | E4: Sotto-area 2016-2019 ex determina 2/2016/DSID | G4: Criticità AEEGSI ex determina 3/2014/DSID | I4: Grado di affidabilità popolazione
C5: K1.1
C6: K1.1 | E6: K1 | G6: A1 | I6: rilevata
C7: K2.1 | E7: K2 | G7: A2 | I7: stimata
C8: K3.1 | E8: K3 | G8: A3
C9: K4.1 | E9: K4 | G9: A4
C10: K5.1 | E10: K5 | G10: A5 | I10: Grado di affidabilità indicatore
C11: A1.1 | E11: A1 | G11: B1
C12: A1.2 | E12: A2 | G12: B2 | I12: 1
C13: A1.3 | E13: A3 | G13: B3 | I13: 2
C14: A1.4 | E14: A4 | G14: B4 | I14: 3
C15: A2.1 | E15: A5 | G15: B5
C16: A2.2 | E16: A6 | G16: B6
C17: A3.1 | E17: A7 | G17: B7 | I17: Iter autorizzativo concluso?
C18: A3.2 | E18: A8 | G18: B8
C19: A4.1 | E19: A9 | G19: C1 | I19: SI
C20: A4.2 | E20: A10 | G20: C2 | I20: NO
C21: A4.3 | E21: P1 | G21: C3 | I21: N.A.
C22: A5.1 | E22: P2 | G22: C4
C23: A5.2 | E23: P3 | G23: C5
C24: A5.3 | E24: P4 | G24: D1 | I24: Stadio di progettazione/esecuzione
C25: A6.1 | E25: P5 | G25: D2
C26: A7.1 | E26: P6 | G26: D3 | I26: Scheda progetto
C27: A7.2 | E27: P7 | G27: D4 | I27: Studio di fattibilità
C28: A7.3 | E28: B1 | G28: E1 | I28: Progetto preliminare
C29: A7.4 | E29: B2 | G29: E2 | I29: Progetto definitivo
C30: A7.5 | E30: B3 | G30: E3 | I30: Progetto esecutivo
C31: A8.1 | E31: B4 | G31: E4 | I31: Lavori aggiudicati
C32: A8.2 | E32: B5 | G32: E5 | I32: Lavori in corso
C33: A9.1 | E33: B6 | G33: F1
C34: A9.2 | E34: B7 | G34: F2
C35: A10 | E35: B8 | G35: F3 | I35: Intervento presente nel PdI 2014-2017?
C36: P1.1 | E36: B9 | G36: F4
C37: P1.2 | E37: B10 | G37: F5 | I37: Sì
C38: P1.3 | E38: B11 | G38: F6 | I38: No
C39: P1.4 | E39: C1 | G39: F7
C40: P1.5 | E40: C2 | G40: F8
C41: P1.6 | E41: C3 | G41: G1
C42: P1.7 | E42: C4 | G42: G2
C43: P1.8 | E43: C5 | G43: G3
C44: P2.1 | E44: C6 | G44: G4
C45: P2.2 | E45: C7 | G45: G5
C46: P2.3 | E46: C8
C47: P3.1 | E47: D1
C48: P3.2 | E48: D2
C49: P4.1 | E49: D3
C50: P4.2 | E50: D4
C51: P4.3 | E51: D5
C52: P5.1 | E52: D6
C53: P5.2 | E53: G1
C54: P6.1 | E54: G2
C55: P6.2 | E55: G3
C56: P7.1 | E56: G4
C57: B1.1 | E57: G5
C58: B1.2 | E58: M1
C59: B1.3 | E59: M2
C60: B1.4 | E60: M3
C61: B1.5 | E61: M4
C62: B2.1 | E62: M5
C63: B3.1
C64: B4.1
C65: B4.2
C66: B5.1
C67: B6.1
C68: B6.2
C69: B6.3
C70: B7.1
C71: B8.1
C72: B9.1
C73: B9.2
C74: B10.1
C75: B10.2
C76: B11.1
C77: C1.1
C78: C2.1
C79: C2.2
C80: C2.3
C81: C2.4
C82: C2.5
C83: C2.6
C84: C2.7
C85: C2.8
C86: C2.9
C87: C3.1
C88: C4.1
C89: C4.2
C90: C5.1
C91: C6.1
C92: C6.2
C93: C7.1
C94: C7.2
C95: C8.1
C96: D1.1
C97: D1.2
C98: D1.3
C99: D1.4
C100: D1.5
C101: D2.1
C102: D2.2
C103: D2.3
C104: D2.4
C105: D2.5
C106: D2.6
C107: D2.7
C108: D2.8
C109: D2.9
C110: D2.10
C111: D3.1
C112: D3.2
C113: D4.1
C114: D4.2
C115: D4.3
C116: D4.4
C117: D5.1
C118: D5.2
C119: D6.1
C120: D6.2
C121: D6.3
C122: G1.1
C123: G2.1
C124: G3.1
C125: G4.1
C126: G5.1
C127: M1.1
C128: M1.2
C129: M1.3
C130: M1.4
C131: M1.5
C132: M2.1
C133: M3.1
C134: M4.1
C135: M4.2
C136: M4.3
C137: M4.4
C138: M4.5
C139: M4.6
C140: M4.7
C141: M4.8
C142: M5.1

Sheet Criticità & Indicatori
B2: ATO | C2: ATO CO - COMO | D2: ID ATO | E2: 304 | H2: Dati PdI 2016-2019
B3: Ente di Governo d'Ambito | C3: Provincia di Como | D3: ID Ente di Governo d'Ambito
B4: Soggetto Gestore | C4: Como Acqua srl | D4: ID Soggetto Gestore | E4: 21521 | H4: Dati PdI 2014-2017
B6: Criticità AEEGSI ex determina 2/2016/DSID | C6: Sotto-area 2016-2019 ex determina 2/2016/DSID | D6: Criticità AEEGSI ex determina 3/2014/DSID | E6: Località interessata/e criticità | F6: Popolazione interessata criticità PdI 2016-2019 (ab.) | G6: Rilevata/ Stimata | H6: Incidenza su pop. Totale ATO (%) | I6: Indicatore di performance utilizzato | J6: Formula [Unità di misura] | K6: Grado di attendibilità indicatore | L6: Livello attuale al 31-12-2015 | M6: Livello obiettivo PdI (2014-2017)
B8: K1.1 | C8: K1 | D8: B4 | E8: 136 Comuni | F8: 508066 | G8: rilevata | H8: 85 | I8: Percentuale di digitalizzazione delle infrastrutture acquedottistiche | J8: Numero di Comuni con infrastrutture acquedottistiche completamente digitalizzate / Comuni presenti nell'ATO [%] | K8: 1 | L8: 11.1 | M8: -
B9: K1.1 | C9: K1 | D9: C5 | E9: 137 Comuni | F9: 476635 | G9: rilevata | H9: 80 | I9: Percentuale di digitalizzazione delle infrastrutture fognarie | J9: Numero di Comuni con infrastrutture fognarie completamente digitalizzate / Comuni presenti nell'ATO [%] | K9: 1 | L9: 10.5 | M9: -
B10: K3.1 | C10: K3 | D10: A1 | E10: dato non disponibile | I10: Percentuale delle reti acquedottistiche dotate di sistema di telecontrollo/teleallarme | J10: Reti acquedottistiche dotate di sistema di telecontrollo-teleallarme / Numero reti acquedottistiche presenti nell'ATO [%] | K10: 1 | L10: non disponibile | M10: -
B11: K3.1 | C11: K3 | D11: A1 | E11: Depuratori presenti nell'ATO | I11: Percentuale degli impianti di depurazione dotati di sistema di telecontrollo / teleallarme | J11: Depuratori con dotati di sistema di telecontrollo-teleallarme / Depuratori presenti nell'ATO [%] | K11: 1 | L11: non disponibile | M11: -
B12: A1.1 | C12: A1 | D12: A1 | E12: ATO Como | I12: Episodi di interruzione della fornitura dovuta a problemi di approvvigionamento idrico | J12: Numero di episodi all'anno con presenza di interruzione del servizio superiore a 24 ore, documentati dal Gestore e/o dai Comuni, dovuti a problemi di approvvigionamento idrico [num./anno] | K12: 1 | L12: non disponibile | M12: -
B13: A1.4 | C13: A1 | D13: A5 | E13: ATO Como | F13: 549901 | G13: stimata | H13: 92 | I13: Percentuale del numero di captazioni ricadenti nell'ATO con aree di salvaguardia aventi la necessità di essere ridelimitate | J13: Numero di captazioni con necessità di ridelimitazione dell'area di salvaguardia / Numero di captazioni presenti nell'ATO [%] | K13: 1 | L13: 41.4 | M13: -
B14: P2.1 | C14: P2 | D14: B2 | E14: 34 Comuni (per la maggior parte nella parte settentrionale dell'ATO) | F14: 60449 | G14: stimata | H14: 10.1 | I14: Giudizio sintetico complessivo dello stato di qualità dell’acqua distribuita dall'acquedotto pubblico - Parametri microbiologici | J14: Indicazione di un giudizio annuale (BUONO, DISCRETO, CRITICO, MOLTO CRITICO), espresso sulla base delle indicazioni dell'ATS (ex ASL), per ogni rete acquedottistica comunale e in base ai parametri microbiologici, al fine di aggregare il dato e calcolare un valore medio a livello comunale a partire dai dati dei singoli controlli [Giudizio annuale] | K14: 1 | L14: Discreto/Buono: per 119 Comuni; Critico / Molto Critico: per 34 Comuni | M14: 100% giudizi almeno DISCRETO
B15: P2.1 | C15: P2 | D15: B2 | E15: Griante | F15: 633 | G15: stimata | H15: 0.1 | I15: Giudizio sintetico complessivo dello stato di qualità dell’acqua distribuita dall'acquedotto pubblico - Parametri chimici | J15: Indicazione di un giudizio annuale (BUONO, DISCRETO, CRITICO, MOLTO CRITICO), espresso sulla base delle indicazioni dell'ATS (ex ASL), per ogni rete acquedottistica comunale e in base ai parametri chimici, al fine di aggregare il dato e calcolare un valore medio a livello comunale a partire dai dati dei singoli controlli [Giudizio annuale] | K15: 1 | L15: Discreto/Buono: per 147 Comuni; Critico / Molto Critico: per 1 Comune (Griante) Non Disponibile: per 5 Comuni | M15: 100% giudizi almeno DISCRETO
B16: B4.1 | C16: B4 | D16: B4 | E16: ATO Como | F16: 127812 | G16: stimata | H16: 21.4 | I16: Lunghezza della rete acquedottistica (adduzione e distribuzione) da ristrutturare | J16: A seguito dell'esecuzione degli interventi di rifacimento delle reti acquedottistiche, si aggiorna il dato dei "km di rete da sostituire" inzialmente elaborato col software EPANET (usato per determinare la lunghezza dei tratti di rete da assoggettare a manutenzione e quindi per pianificare gli investimenti). Il valore potrà essere continuamente aggiornato a seguito di ricognizioni/segnalazioni da parte del Gestore [km] | K16: 3 | L16: 1006.46 | M16: -
B17: B7.1 | C17: B7 | D17: A1 | I17: Percentuale delle opere di estensione delle reti di distribuzione e adduzione realizzate rispetto a quelle previste. | J17: Numero di interventi di estensione delle reti acquedottistiche realizzati / Numero di interventi di estensione delle reti acquedottistiche previsti [%] | K17: 1 | L17: non disponibile | M17: 0
B18: B8.1 | C18: B8 | D18: A4 | E18: ATO Como | F18: 565404 | G18: stimata | H18: 94.6 | I18: Percentuale delle opere di adeguamento e/o costruzione di serbatoi realizzate rispetto a quelle previste. | J18: Numero di interventi di adeguamento e/o costruzione di serbatoi realizzati / Numero di interventi di adeguamento e/o costruzione di serbatoi previsti [%] | K18: 1 | L18: non disponibile | M18: 0
B19: C1.1 | C19: C1 | D19: C1 | I19: Percentuale delle opere di costruzione di dorsali di collettamento realizzate rispetto a quelle previste. | J19: Numero di interventi di costruzione di dorsali di collettamento realizzati / Numero di interventi di costruzione di dorsali di collettamento previsti [%] | K19: 1 | L19: non disponibile | M19: 0
B20: C1.1 | C20: C1 | D20: C1 | E20: 35 Comuni | F20: 10044 | G20: rilevata | H20: 1.7 | I20: Percentuale di copertura del servizio di fognatura | J20: Carico collettato / Carico complessivamente generato negli agglomerati ricadenti nell'ATO [%] | K20: 2 | L20: 98.3 | M20: 100
B21: C2.1 | C21: C2 | D21: C2 | I21: Percentuale delle opere di manutenzione straordinaria delle reti fognarie realizzate rispetto a quelle previste. | J21: Numero di interventi di manutenzione straordinaria delle reti fognarie realizzati / Numero di interventi di manutenzione straordinaria delle reti fognarie previsti [%] | K21: 1 | L21: non disponibile | M21: -
B22: C2.1 | C22: C2 | D22: C2 | I22: Percentuale delle opere di manutenzione straordinaria delle reti di collettamento realizzate rispetto a quelle previste. | J22: Numero di interventi di manutenzione straordinaria delle reti di collettamento realizzati / Numero di interventi di manutenzione straordinaria delle reti di collettamento previsti [%] | K22: 1 | L22: non disponibile | M22: -
B23: C2.3 | C23: C2 | D23: C2 | I23: Percentuale delle opere di manutenzione straordinaria delle stazioni di sollevamento realizzate rispetto a quelle previste. | J23: Numero di interventi di manutenzione straordinaria delle stazioni di sollevamento realizzati / Numero di interventi di manutenzione straordinaria delle stazioni di sollevamento previsti [%] | K23: 1 | L23: non disponibile | M23: -
B24: C2.8 | C24: C2 | D24: D2 | I24: Percentuale delle opere di eliminazione delle acque estranee dai collettori realizzate rispetto a quelle previste. | J24: Numero di interventi di eliminazione delle acque estranee dai collettori realizzati / Numero di interventi di eliminazione delle acque estranee dai collettori previsti [%] | K24: 1 | L24: non disponibile | M24: -
B25: C4.1 | C25: C4 | D25: C4 | I25: Numero di allagamenti all'anno per rete fognaria comunale | J25: Numero di allagamenti generati da malfunzionamenti della rete fognaria segnalati nell'anno [Numero / anno] | K25: 1 | L25: non disponibile | M25: -
B26: C4.2 | C26: C4 | D26: C2 / C3 / D2 | I26: Numero di attivazioni all'anno degli scaricatori oltre le 96 ore dall'ultimo evento piovoso | J26: Numero di attivazioni all'anno degli scaricatori oltre le 96 ore dall'ultimo evento piovoso segnalate nell'anno [Numero / anno] | K26: 1 | L26: non disponibile | M26: -
B27: C8.1 | C27: C8 | D27: D4 | I27: Numero di allagamenti generati da malfunzionamenti della rete fognaria a seguito di eventi piovosi | J27: Numero di allagamenti generati da malfunzionamenti della rete fognaria segnalati nell'anno [Numero / anno] | K27: 1 | L27: non disponibile | M27: -
B28: D1.1 | C28: D1 | D28: D1 | E28: Bellagio, Blevio, Garzeno, Torno | F28: 4713 | G28: rilevata | H28: 0.5 | I28: Percentuale di agglomerati provvisti di impianto di depurazione o di trattamento appropriato | J28: Agglomerati provvisti di impianto di depurazione / Numero agglomerati ricadenti nell'ATO [%] | K28: 1 | L28: =(61-6)/61*100 -> 90.16393443 | M28: 100
B29: D1.4 | C29: D1 | D29: D4 | E29: Depuratori presenti nell'ATO con potenzialità >= 10000 AE con opere di adeguamento del terziario segnalate dal Gestore | F29: 178757 | G29: rilevata | H29: 29.9 | I29: Numero di depuratori con potenzialità >= 10000 AE con trattamento terziario assente o da adeguare | J29: Numero di depuratori con potenzialità >= 10000 AE con trattamento terziario assente o da adeguare (sulla base delle opere segnalate dal Gestore) [Numero] | K29: 1 | L29: 7 | M29: -
B30: D2.2 | C30: D2 | D30: D2 | I30: Percentuale delle opere realizzate per l'adeguamento delle infrastrutture civili esistenti presso gli impianti (attuazione normativa sicurezza, locali accessori,...) rispetto a quelle previste | J30: Numero di interventi realizzati per l'adeguamento delle infrastrutture civili esistenti presso gli impianti / Numero di interventi previsti per l'adeguamento delle infrastrutture civili esistenti presso gli impianti [%] | K30: 1 | L30: non disponibile | M30: -
B31: D2.4 | C31: D2 | D31: D4 | E31: 11 Comuni | F31: 11407 | G31: rilevata | H31: 1.9 | I31: Carico domestico complessivamente generato negli agglomerati da centralizzare [AE] | J31: - | K31: 2 | L31: 11407 | M31: -
B32: D2.6 | C32: D2 | D32: D2 | E32: 10 Depuratori con potenzialità >= 10000 AE e con linea fanghi senza controllo emissioni | F32: 216510 | G32: rilevata | H32: 37.2 | I32: Percentuale degli impianti di depurazione con potenzialità > 10000 AE e con linea fanghi dotati di sistemi di abbattimento delle emissioni odorose | J32: Numero degli impianti di depurazione con potenzialità > 10000 AE e con linea fanghi dotati di sistemi di abbattimento delle emissioni odorose / Numero dei depuratori con potenzialità > 10000 AE e con linea fanghi che necessitano di un sistema di controllo delle emissioni odorose [%] | K32: 1 | L32: =3/13*100 -> 23.07692308 | M32: -
B33: D2.9 | C33: D2 | D33: D2 | E33: 7 Depuratori | F33: 215037 | G33: rilevata | H33: 29 | I33: Giudizio di conformità annuale | J33: Giudizio annuale espresso da ARPA Lombardia in merito alla conformità delle acque scaricate dai depuratori alla normativa vigente [per depuratori > 1999 AE: CONFORME / NON CONFORME; per depuratori <2000 AE: REGOLAMENTARE / NON REGOLAMENTARE] | K33: 1 | L33: GIUDIZIO ARPA 2014: CONFORME / REGOLAMENTARE: 33 impianti NON CONFORMI / NON REGOLAMENTARI: 7 impianti; NON ESPRIMIBILE (per mancanza di dati): 25 impianti; | M33: 100% giudizi Conformi / Regolamentari
B34: D3.1 | C34: D3 | D34: E2 | I34: Quantità annua di fanghi complessivamente conferita in discarica | J34: Quantità di fanghi smaltita annualmente in discarica (dato a livello di ATO) [tonn. / anno] | K34: 1 | L34: non disponibile | M34: -
B35: D6.3 | C35: D6 | D35: D2 | I35: Numero di attivazioni all'anno, oltre le 96 ore dall'ultimo evento piovoso, degli scaricatori in testa agli impianti di depurazione con carico >= 10.000 AE | J35: - | K35: 1 | L35: non disponibile | M35: -

Sheet Alternative & Selezioni
B2: ATO | C2: =IF('Criticità & Indicatori'!C2=0,"",'Criticità & Indicatori'!C2) -> ATO CO - COMO | D2: ID ATO | E2: =IF('Criticità & Indicatori'!E2=0,"",'Criticità & Indicatori'!E2) -> 304 | H2: Dati PdI 2016-2019
B3: Ente di Governo d'Ambito | C3: =IF('Criticità & Indicatori'!C3=0,"",'Criticità & Indicatori'!C3) -> Provincia di Como | D3: ID Ente di Governo d'Ambito | E3: =IF('Criticità & Indicatori'!E3=0,"",'Criticità & Indicatori'!E3) -> 
B4: Soggetto Gestore | C4: =IF('Criticità & Indicatori'!C4=0,"",'Criticità & Indicatori'!C4) -> Como Acqua srl | D4: ID Soggetto Gestore | E4: =IF('Criticità & Indicatori'!E4=0,"",'Criticità & Indicatori'!E4) -> 21521 | H4: Dati PdI 2014-2017
B6: Criticità AEEGSI ex determina 2/2016/DSID | C6: Sotto-area 2016-2019 ex determina 2/2016/DSID | D6: ID intervento pianificato | E6: Titolo Intervento pianificato | F6: Costo totale intervento | G6: Popolazione interessata intervento (ab.) | H6: Livello obiettivo finale | I6: Opzione 0 (Titolo intervento) | J6: Costo previsto Opzione 0 | K6: Popolazione interessata Opzione 0 | L6: Opzione 1 (Titolo intervento) | M6: Costo previsto Opzione 1 | N6: Popolazione interessata Opzione 1 | O6: Livello obiettivo Opzione 1 | P6: Opzione 2 (Titolo intervento) | Q6: Costo previsto Opzione 2 | R6: Popolazione interessata Opzione 2 | S6: Livello obiettivo Opzione 2 | T6: Opzione 3 (Titolo intervento) | U6: Costo previsto Opzione 3 | V6: Popolazione interessata Opzione 3 | W6: Livello obiettivo Opzione 3 | X6: Opzione 4 (Titolo intervento) | Y6: Costo previsto Opzione 4 | Z6: Popolazione interessata Opzione 4 | AA6: Livello obiettivo Opzione 4 | AB6: Opzione 5 (Titolo intervento) | AC6: Costo previsto Opzione 5 | AD6: Popolazione interessata Opzione 5 | AE6: Livello obiettivo Opzione 5 | AF6: Opzione 6 (Titolo intervento) | AG6: Costo previsto Opzione 6 | AH6: Popolazione interessata Opzione 6 | AI6: Livello obiettivo Opzione 6 | AJ6: Opzione 7 (Titolo intervento) | AK6: Costo previsto Opzione 7 | AL6: Popolazione interessata Opzione 7 | AM6: Livello obiettivo Opzione 7 | AN6: Opzione 8 (Titolo intervento) | AO6: Costo previsto Opzione 8 | AP6: Popolazione interessata Opzione 8 | AQ6: Livello obiettivo Opzione 8 | AR6: Opzione 9 (Titolo intervento) | AS6: Costo previsto Opzione 9 | AT6: Popolazione interessata Opzione 9 | AU6: Livello obiettivo Opzione 9 | AV6: Opzione 10 (Titolo intervento) | AW6: Costo previsto Opzione 10 | AX6: Popolazione interessata Opzione 10 | AY6: Livello obiettivo Opzione 10
B8: K1.1 | C8: K1 | D8: 107 | E8: RETI ACQUEDOTTISTICHE - Mappatura / Ricerche perdite / Studi | F8: 2315232.41 | G8: 508066 | H8: 100
B9: K1.1 | C9: K1 | D9: 203 | E9: RETI FOGNARIE - Mappatura / Ricerche perdite / Studi | F9: 1700098.04 | G9: 476635 | H9: 100
B10: K3.1 | C10: K3 | D10: 108 | E10: RETI ACQUEDOTTISTICHE - Telecontrollo (posa / adeguamento) | F10: 248197 | H10: 100
B11: K3.1 | C11: K3 | D11: 406 | E11: DEPURATORE ESISTENTE - Telecontrollo (posa / adeguamento) | F11: 316000 | H11: 100
B12: A1.1 | C12: A1 | D12: 102 | E12: CAPTAZIONI - manutenzione straordinaria | F12: 3034058.37 | H12: 0
B13: A1.1 | C13: A1 | D13: 103 | E13: INTERCONNESSIONE RETI SOVRACOMUNALI | F13: 1265300 | H13: 0
B14: A1.1 | C14: A1 | D14: 104 | E14: NUOVA CAPTAZIONE - Realizzazione e allacciamento alla rete | F14: 569465 | H14: 0
B15: A1.4 | C15: A1 | D15: 101 | E15: AREE DI SALVAGUARDIA - adeguamento | F15: 1006452.5 | G15: 549901 | H15: 0
B16: P2.1 | C16: P2 | D16: 106 | E16: POTABILIZZATORI - nuove opere | F16: 573240.96 | G16: 60449 | H16: 100% giudizi BUONI
B17: P2.1 | C17: P2 | D17: 105 | E17: POTABILIZZATORI - adeguamento | F17: 1022540 | G17: 633 | H17: 100% giudizi BUONI
B18: B4.1 | C18: B4 | D18: 110 | E18: RETI DI DISTRIBUZIONE E ADDUZIONE - manutenzione straordinaria / rifacimenti | F18: 13154676.4 | G18: 127812 | H18: 0
B19: B7.1 | C19: B7 | D19: 109 | E19: RETI DI DISTRIBUZIONE E ADDUZIONE - estensione | F19: 791450 | H19: 100
B20: B8.1 | C20: B8 | D20: 111 | E20: SERBATOI - adeguamento e ampliamento | F20: 4588433.35 | G20: 565404 | H20: 100
B21: B8.1 | C21: B8 | D21: 112 | E21: SERBATOI - realizzazione di nuovo serbatoio | F21: 300000 | H21: 100
B22: C1.1 | C22: C1 | D22: 304 | E22: NUOVA DORSALE DI COLLETTAMENTO (Realizzazione/estensione di nuovo tratto) | F22: 2080000 | H22: 100
B23: C1.1 | C23: C1 | D23: 201 | E23: RETI FOGNARIE - Estensione - nuove opere | F23: 16933103.03 | G23: 10044 | H23: 100
B24: C2.1 | C24: C2 | D24: 202 | E24: RETI FOGNARIE - manutenzione straordinaria | F24: 14886976.29 | H24: 100
B25: C2.1 | C25: C2 | D25: 302 | E25: DORSALE DI COLLETTAMENTO - manutenzione straordinaria / adeguamenti | F25: 16002892.69 | H25: 100
B26: C2.3 | C26: C2 | D26: 207 | E26: STAZIONI DI SOLLEVAMENTO - manutenzione straordinaria | F26: 875707.91 | H26: 100
B27: C2.8 | C27: C2 | D27: 301 | E27: DORSALE DI COLLETTAMENTO - Adeguamento (eliminazione acque estranee) | F27: 800659.74 | H27: 100
B28: C4.1 | C28: C4 | D28: 204 | E28: RETI FOGNARIE - Separazione reti miste - nuove opere | F28: 7540693.94 | H28: 1 episodio/anno per Comune
B29: C4.2 | C29: C4 | D29: 206 | E29: SCARICATORI DI PIENA - nuove opere (inserimento / adeguamento paratoie) | F29: 318492.5 | H29: 1 episodio/anno per scolmatore
B30: C4.2 | C30: C4 | D30: 205 | E30: SCARICATORI DI PIENA - manutenzione straordinaria | F30: 4796100 | H30: 1 episodio/anno per scolmatore
B31: C8.1 | C31: C8 | D31: 305 | E31: VASCA DI ACCUMULO ACQUE DI PRIMA PIOGGIA - Realizzazione | F31: 3880000 | H31: 1 episodio/anno per Comune
B32: D1.1 | C32: D1 | D32: 401 | E32: COSTRUZIONE NUOVO IMPIANTO DI DEPURAZIONE E RELATIVI COLLETTORI | F32: 1533985.51 | G32: 4659 | H32: 100
B33: D1.4 | C33: D1 | D33: 407 | E33: DEPURATORE ESISTENTE > 10000 AE: adeguamento trattamento terziario | F33: 1470000 | G33: 178757 | H33: 0
B34: D2.2 | C34: D2 | D34: 402 | E34: DEPURATORE ESISTENTE - adeguamenti infrastrutture (attuazione normativa sicurezza, locali accessori,...) | F34: 862000 | H34: 100
B35: D2.4 | C35: D2 | D35: 303 | E35: NUOVA DORSALE DI COLLETTAMENTO - attuazione schema/pianificazione | F35: 250000 | G35: 11407 | H35: 0
B36: D2.6 | C36: D2 | D36: 404 | E36: DEPURATORE ESISTENTE - adeguamento/posa sistema abbattimento emissioni odorose | F36: 1002000 | G36: 216510 | H36: 100
B37: D2.9 | C37: D2 | D37: 403 | E37: DEPURATORE ESISTENTE - adeguamento / manutenzione straordinaria (per rispetto limiti allo scarico) | F37: 12246571.39 | G37: 215037 | H37: 100% giudizi Conformi / Regolamentari
B38: D3.1 | C38: D3 | D38: 408 | E38: FANGHI - Interventi per diminuire conferimento in discarica | F38: 0 | H38: Diminuzione del 5% nel periodo 2016-2034
B39: D6.3 | C39: D6 | D39: 405 | E39: DEPURATORE ESISTENTE - realizzazione di vasca volano | F39: 3085000 | H39: 1 episodio/anno per depuratore
B40: - | C40: - | D40: 100 | E40: ACQUEDOTTO - ALLACCIAMENTI | F40: 3467100 | H40: -
B41: - | C41: - | D41: 200 | E41: FOGNATURA - ALLACCIAMENTI | F41: 4460400 | H41: -

Sheet Cronoprogramma 2016-2019
J2: Aggiungi/Elimina righe | N2: N.
B3: ATO | C3: =IF('Criticità & Indicatori'!C2=0,"",'Criticità & Indicatori'!C2) -> ATO CO - COMO | D3: ID ATO | E3: =IF('Criticità & Indicatori'!E2=0,"",'Criticità & Indicatori'!E2) -> 304 | H3: Dati PdI 2016-2019 | K3: Aggiunge a partire dalla prima riga vuota (NB compilare le prime due righe) | N3: 131
B4: Ente di Governo d'Ambito | C4: =IF('Criticità & Indicatori'!C3=0,"",'Criticità & Indicatori'!C3) -> Provincia di Como | D4: ID Ente di Governo d'Ambito | E4: =IF('Criticità & Indicatori'!E3=0,"",'Criticità & Indicatori'!E3) ->  | K4: Elimina righe vuote | N4: 1
B5: Soggetto Gestore | C5: =IF('Criticità & Indicatori'!C4=0,"",'Criticità & Indicatori'!C4) -> Como Acqua srl | D5: ID Soggetto Gestore | E5: =IF('Criticità & Indicatori'!E4=0,"",'Criticità & Indicatori'!E4) -> 21521 | H5: Dati PdI 2014-2017 | K5: Elimina riga compilata: selezionare la riga che si intende eliminare
B7: Analisi interventi | N7: Valori obiettivo | U7: Investimento realizzato | Y7: Investimento pianificato PdI 2014-2017 | AC7: Investimento pianificato PdI 2016-2019
B8: ID intervento pianificato | C8: Titolo Intervento pianificato | D8: Intervento presente nel PdI 2014-2017? | E8: Sotto-area 2016-2019 ex determina 2/2016/DSID | F8: Criticità AEEGSI ex determina 2/2016/DSID | G8: Popolazione interessata criticità (ab) | H8: Popolazione interessata intervento (ab.) | I8: Rilevata/ Stimata | J8: Località interessata/e intervento | K8: Iter autorizzativo concluso? | L8: Stadio di progettazione/esecuzione | M8: Entrata in esercizio prevista (anno) | N8: PdI 2014-2017 | P8: PdI 2016-2019 | T8: Post 2019 | U8: 2014 | W8: 2015 | Y8: 2016 | AA8: 2017 | AC8: 2016 | AE8: 2017 | AG8: 2018 | AI8: 2019 | AK8: TOTALE 2016-2019
N9: 2016 | O9: 2017 | P9: 2016 | Q9: 2017 | R9: 2018 | S9: 2019 | T9: Anno? (Specificare) | U9: Finanziato da tariffa | V9: Finanziamento pubblico | W9: Finanziato da tariffa | X9: Finanziamento pubblico | Y9: Finanziato da tariffa | Z9: Finanziamento pubblico | AA9: Finanziato da tariffa | AB9: Finanziamento pubblico | AC9: Finanziato da tariffa | AD9: Finanziamento pubblico | AE9: Finanziato da tariffa | AF9: Finanziamento pubblico | AG9: Finanziato da tariffa | AH9: Finanziamento pubblico | AI9: Finanziato da tariffa | AJ9: Finanziamento pubblico | AK9: Finanziato da tariffa | AL9: Finanziamento pubblico
B10: 107.13003.1 | C10: MAPPATURA RETI E PRESE E GOEREFERENZIAZIONE | D10: No | E10: K1 | F10: K1.1 | G10: 508066 | J10: Albavilla | K10: N.A. | L10: Studio di fattibilità | M10: 2016 | N10: - | O10: - | P10: 100 | Q10: - | R10: - | S10: - | T10: - | AC10: 32921.81 | AD10: 0 | AE10: 0 | AF10: 0 | AG10: 0 | AH10: 0 | AI10: 0 | AJ10: 0 | AK10: =SUM(AC10+AE10+AG10+AI10) -> 32921.81 | AL10: =SUM(AD10+AF10+AH10+AJ10) -> 0
B11: 201.13041.1 | C11: Realizzazione fognatura via Milano | D11: No | E11: C1 | F11: C1.1 | G11: 0 | H11: 80 | I11: rilevata | J11: Albavilla | K11: NO | M11: 2016 | N11: - | O11: - | P11: - | Q11: - | R11: - | S11: - | T11: - | AC11: 140000 | AD11: 0 | AE11: 0 | AF11: 0 | AG11: 0 | AH11: 0 | AI11: 0 | AJ11: 0 | AK11: =SUM(AC11+AE11+AG11+AI11) -> 140000 | AL11: =SUM(AD11+AF11+AH11+AJ11) -> 0
B12: 203.13003.1 | C12: Albavilla_RETI FOGNARIE - Mappatura / Ricerche perdite / Studi (Agglomerato 1) | D12: Sì | E12: K1 | F12: K1.1 | G12: 476635 | J12: Albavilla | K12: NO | M12: 2016 | N12: - | O12: - | P12: 100 | Q12: - | R12: - | S12: - | T12: - | AC12: 3079.05 | AD12: 0 | AE12: 0 | AF12: 0 | AG12: 0 | AH12: 0 | AI12: 0 | AJ12: 0 | AK12: 3079.05 | AL12: 0
B13: 203.13003.1 | C13: Albavilla_RETI FOGNARIE - Mappatura / Ricerche perdite / Studi (Agglomerato 2) | D13: Sì | E13: K1 | F13: K1.1 | G13: 476635 | J13: Albavilla | K13: NO | M13: 2016 | N13: - | O13: - | P13: 100 | Q13: - | R13: - | S13: - | T13: - | AC13: 6670.95 | AD13: 0 | AE13: 0 | AF13: 0 | AG13: 0 | AH13: 0 | AI13: 0 | AJ13: 0 | AK13: 6670.95 | AL13: 0
B14: 107.13004.1 | C14: Albese con Cassano_RICERCA PERDITE / MAPPATURA RETE / STUDI | D14: Sì | E14: K1 | F14: K1.1 | G14: 508066 | J14: Albese con Cassano | K14: N.A. | M14: 2016 | N14: - | O14: - | P14: 100 | Q14: - | R14: - | S14: - | T14: - | AC14: 9750 | AD14: 0 | AE14: 0 | AF14: 0 | AG14: 0 | AH14: 0 | AI14: 0 | AJ14: 0 | AK14: 9750 | AL14: 0
B15: 203.13004.1 | C15: Albese con Cassano_RETI FOGNARIE - Mappatura / Ricerche perdite / Studi | D15: Sì | E15: K1 | F15: K1.1 | G15: 476635 | J15: Albese con Cassano | K15: NO | M15: 2016 | N15: - | O15: - | P15: 100 | Q15: - | R15: - | S15: - | T15: - | AC15: 9750 | AD15: 0 | AE15: 0 | AF15: 0 | AG15: 0 | AH15: 0 | AI15: 0 | AJ15: 0 | AK15: 9750 | AL15: 0
B16: 203.13005.1 | C16: Albiolo_RETI FOGNARIE - Mappatura / Ricerche perdite / Studi | D16: Sì | E16: K1 | F16: K1.1 | G16: 476635 | J16: Albiolo | K16: NO | M16: 2016 | N16: - | O16: - | P16: 100 | Q16: - | R16: - | S16: - | T16: - | AC16: 9750 | AD16: 0 | AE16: 0 | AF16: 0 | AG16: 0 | AH16: 0 | AI16: 0 | AJ16: 0 | AK16: 9750 | AL16: 0
B17: 107.13006.1 | C17: MAPPATURA RETI E PRESE E GOEREFERENZIAZIONE | D17: No | E17: K1 | F17: K1.1 | G17: 508066 | J17: Alserio | K17: N.A. | L17: Studio di fattibilità | M17: 2016 | N17: - | O17: - | P17: 100 | Q17: - | R17: - | S17: - | T17: - | AC17: 20000 | AD17: 0 | AE17: 0 | AF17: 0 | AG17: 0 | AH17: 0 | AI17: 0 | AJ17: 0 | AK17: 20000 | AL17: 0
B18: 203.13006.1 | C18: Alserio_RETI FOGNARIE - Mappatura / Ricerche perdite / Studi | D18: Sì | E18: K1 | F18: K1.1 | G18: 476635 | J18: Alserio | K18: NO | M18: 2016 | N18: - | O18: - | P18: 100 | Q18: - | R18: - | S18: - | T18: - | AC18: 9750 | AD18: 0 | AE18: 0 | AF18: 0 | AG18: 0 | AH18: 0 | AI18: 0 | AJ18: 0 | AK18: 9750 | AL18: 0
B19: 107.13007.1 | C19: Alzate Brianza_RICERCA PERDITE / MAPPATURA RETE / STUDI | D19: Sì | E19: K1 | F19: K1.1 | G19: 508066 | J19: Alzate Brianza | K19: N.A. | M19: 2016 | N19: - | O19: - | P19: 100 | Q19: - | R19: - | S19: - | T19: - | AC19: 5850 | AD19: 0 | AE19: 0 | AF19: 0 | AG19: 0 | AH19: 0 | AI19: 0 | AJ19: 0 | AK19: 5850 | AL19: 0
B20: 107.13007.3 | C20: CAMPAGNA RICERCA PERDITE | D20: Sì | E20: K1 | F20: K1.1 | G20: 508066 | J20: ALZATE BRIANZA | K20: N.A. | M20: 2016 | N20: - | O20: - | P20: 100 | Q20: - | R20: - | S20: - | T20: - | AC20: 3900 | AD20: 0 | AE20: 0 | AF20: 0 | AG20: 0 | AH20: 0 | AI20: 0 | AJ20: 0 | AK20: 3900 | AL20: 0
B21: 203.13007.1 | C21: Alzate Brianza_RETI FOGNARIE - Mappatura / Ricerche perdite / Studi - AGGLOMERATO 1 | D21: Sì | E21: K1 | F21: K1.1 | G21: 476635 | J21: Alzate Brianza | K21: NO | M21: 2016 | N21: - | O21: - | P21: 100 | Q21: - | R21: - | S21: - | T21: - | AC21: 6451.58 | AD21: 0 | AE21: 0 | AF21: 0 | AG21: 0 | AH21: 0 | AI21: 0 | AJ21: 0 | AK21: 6451.58 | AL21: 0
B22: 203.13007.2 | C22: Alzate Brianza_RETI FOGNARIE - Mappatura / Ricerche perdite / Studi - AGGLOMERATO 2 | D22: Sì | E22: K1 | F22: K1.1 | G22: 476635 | J22: Alzate Brianza | K22: NO | M22: 2016 | N22: - | O22: - | P22: 100 | Q22: - | R22: - | S22: - | T22: - | AC22: 3298.43 | AD22: 0 | AE22: 0 | AF22: 0 | AG22: 0 | AH22: 0 | AI22: 0 | AJ22: 0 | AK22: 3298.43 | AL22: 0
B23: 107.13009.2 | C23: RICERCA PERDITA PIU RIPARAZIONE PERDITE | D23: Sì | E23: K1 | F23: K1.1 | G23: 508066 | J23: ANZANO DEL PARCO | K23: N.A. | M23: 2016 | N23: - | O23: - | P23: 100 | Q23: - | R23: - | S23: - | T23: - | AC23: 8190 | AD23: 0 | AE23: 0 | AF23: 0 | AG23: 0 | AH23: 0 | AI23: 0 | AJ23: 0 | AK23: 8190 | AL23: 0
B24: 203.13009.1 | C24: Anzano del Parco_RETI FOGNARIE - Mappatura / Ricerche perdite / Studi | D24: Sì | E24: K1 | F24: K1.1 | G24: 476635 | J24: Anzano del Parco | K24: NO | M24: 2016 | N24: - | O24: - | P24: 100 | Q24: - | R24: - | S24: - | T24: - | AC24: 9750 | AD24: 0 | AE24: 0 | AF24: 0 | AG24: 0 | AH24: 0 | AI24: 0 | AJ24: 0 | AK24: 9750 | AL24: 0
B25: 100.13010.1 | C25: Allacciamenti alla rete acquedottistica | D25: No | E25: - | F25: - | G25: 0 | J25: Appiano Gentile | K25: NO | M25: 2016 | N25: - | O25: - | P25: - | Q25: - | R25: - | S25: - | T25: - | AC25: 0 | AD25: 73600 | AE25: 0 | AF25: 0 | AG25: 0 | AH25: 0 | AI25: 0 | AJ25: 0 | AK25: 0 | AL25: 73600
B26: 200.13010.1 | C26: Allacciamenti alla rete fognaria | D26: No | E26: - | F26: - | G26: 0 | J26: Appiano Gentile | K26: NO | M26: 2016 | N26: - | O26: - | P26: - | Q26: - | R26: - | S26: - | T26: - | AC26: 0 | AD26: 108560 | AE26: 0 | AF26: 0 | AG26: 0 | AH26: 0 | AI26: 0 | AJ26: 0 | AK26: 0 | AL26: 108560
B27: 201.13010.1 | C27: Tronco di fognatura via C. Colombo | D27: Sì | E27: C1 | F27: C1.1 | G27: 0 | H27: 115 | I27: rilevata | J27: Appiano Gentile | K27: NO | L27: Progetto definitivo | M27: 2016 | N27: - | O27: - | P27: - | Q27: - | R27: - | S27: - | T27: - | AC27: 30000 | AD27: 490000 | AE27: 0 | AF27: 0 | AG27: 0 | AH27: 0 | AI27: 0 | AJ27: 0 | AK27: 30000 | AL27: 490000
B28: 203.13010.1 | C28: Appiano Gentile_RETI FOGNARIE - Mappatura / Ricerche perdite / Studi (Agglomerato 1) | D28: Sì | E28: K1 | F28: K1.1 | G28: 476635 | J28: Appiano Gentile | K28: NO | M28: 2016 | N28: - | O28: - | P28: 100 | Q28: - | R28: - | S28: - | T28: - | AC28: 9750 | AD28: 0 | AE28: 0 | AF28: 0 | AG28: 0 | AH28: 0 | AI28: 0 | AJ28: 0 | AK28: 9750 | AL28: 0
B29: 101.13011.1 | C29: POZZO DI SOLLEVAMENTO A LAGO PULIZIA CON PUNZONATURA E SOSTITUZIONE CAMICIA | D29: No | E29: A1 | F29: A1.4 | G29: 633 | J29: Argegno | K29: NO | L29: Progetto definitivo | M29: 2016 | N29: - | O29: - | P29: - | Q29: - | R29: - | S29: - | T29: - | AC29: 35000 | AD29: 0 | AE29: 0 | AF29: 0 | AG29: 0 | AH29: 0 | AI29: 0 | AJ29: 0 | AK29: 35000 | AL29: 0
B30: 107.13011.1 | C30: Argegno_RICERCA PERDITE / MAPPATURA RETE / STUDI | D30: Sì | E30: K1 | F30: K1.1 | G30: 508066 | J30: Argegno | K30: N.A. | M30: 2016 | N30: - | O30: - | P30: 100 | Q30: - | R30: - | S30: - | T30: - | AC30: 9750 | AD30: 0 | AE30: 0 | AF30: 0 | AG30: 0 | AH30: 0 | AI30: 0 | AJ30: 0 | AK30: 9750 | AL30: 0
B31: 111.13012.3 | C31: MESSA IN SICUREZZA DEGLI IMPINTI DI SOLLEVAMENTO E ACCUMULO ESISTENTI | D31: No | E31: B8 | F31: B8.1 | G31: 0 | J31: AROSIO | K31: N.A. | L31: Progetto esecutivo | M31: 2016 | N31: - | O31: - | P31: - | Q31: - | R31: - | S31: - | T31: - | AC31: 23889.67 | AD31: 0 | AE31: 0 | AF31: 0 | AG31: 0 | AH31: 0 | AI31: 0 | AJ31: 0 | AK31: 23889.67 | AL31: 0
B32: 203.13012.1 | C32: Arosio_RETI FOGNARIE - Mappatura / Ricerche perdite / Studi | D32: Sì | E32: K1 | F32: K1.1 | G32: 476635 | J32: Arosio | K32: NO | M32: 2016 | N32: - | O32: - | P32: 100 | Q32: - | R32: - | S32: - | T32: - | AC32: 9435.08 | AD32: 0 | AE32: 0 | AF32: 0 | AG32: 0 | AH32: 0 | AI32: 0 | AJ32: 0 | AK32: 9435.08 | AL32: 0
B33: 203.13012.2 | C33: Arosio_RETI FOGNARIE - Mappatura / Ricerche perdite / Studi | D33: Sì | E33: K1 | F33: K1.1 | G33: 476635 | J33: Arosio | K33: NO | M33: 2016 | N33: - | O33: - | P33: 100 | Q33: - | R33: - | S33: - | T33: - | AC33: 253.5 | AD33: 0 | AE33: 0 | AF33: 0 | AG33: 0 | AH33: 0 | AI33: 0 | AJ33: 0 | AK33: 253.5 | AL33: 0
B34: 203.13012.3 | C34: Arosio_RETI FOGNARIE - Mappatura / Ricerche perdite / Studi | D34: Sì | E34: K1 | F34: K1.1 | G34: 476635 | J34: Arosio | K34: NO | M34: 2016 | N34: - | O34: - | P34: 100 | Q34: - | R34: - | S34: - | T34: - | AC34: 61.43 | AD34: 0 | AE34: 0 | AF34: 0 | AG34: 0 | AH34: 0 | AI34: 0 | AJ34: 0 | AK34: 61.43 | AL34: 0
B35: 203.13013.1 | C35: Asso_RETI FOGNARIE - Mappatura / Ricerche perdite / Studi | D35: Sì | E35: K1 | F35: K1.1 | G35: 476635 | J35: Asso | K35: NO | M35: 2016 | N35: - | O35: - | P35: 100 | Q35: - | R35: - | S35: - | T35: - | AC35: 9750 | AD35: 0 | AE35: 0 | AF35: 0 | AG35: 0 | AH35: 0 | AI35: 0 | AJ35: 0 | AK35: 9750 | AL35: 0
B36: 203.13015.1 | C36: Barni_RETI FOGNARIE - Mappatura / Ricerche perdite / Studi - AGGLOMERATO 1 | D36: Sì | E36: K1 | F36: K1.1 | G36: 476635 | J36: Barni | K36: NO | M36: 2016 | N36: - | O36: - | P36: 100 | Q36: - | R36: - | S36: - | T36: - | AC36: 7786.35 | AD36: 0 | AE36: 0 | AF36: 0 | AG36: 0 | AH36: 0 | AI36: 0 | AJ36: 0 | AK36: 7786.35 | AL36: 0
B37: 203.13015.2 | C37: Barni_RETI FOGNARIE - Mappatura / Ricerche perdite / Studi - AGGLOMERATO 2 | D37: Sì | E37: K1 | F37: K1.1 | G37: 476635 | J37: Barni | K37: NO | M37: 2016 | N37: - | O37: - | P37: 100 | Q37: - | R37: - | S37: - | T37: - | AC37: 1963.65 | AD37: 0 | AE37: 0 | AF37: 0 | AG37: 0 | AH37: 0 | AI37: 0 | AJ37: 0 | AK37: 1963.65 | AL37: 0
B38: 102.13019.1 | C38: CIVENNA - Lavori di manutenzione straordinaria, valorizzazione e messa a norma della sorgente Pradello-Marazza | D38: No | E38: A1 | F38: A1.1 | G38: 0 | J38: Bellagio | K38: N.A. | L38: Progetto esecutivo | M38: 2016 | N38: - | O38: - | P38: 0 | Q38: - | R38: - | S38: - | T38: - | AC38: 39250 | AD38: 0 | AE38: 0 | AF38: 0 | AG38: 0 | AH38: 0 | AI38: 0 | AJ38: 0 | AK38: 39250 | AL38: 0
B39: 104.13019.2 | C39: CIVENNA - Nuova sorgente di Palembri | D39: No | E39: A1 | F39: A1.1 | G39: 60449 | J39: Bellagio | K39: NO | L39: Progetto esecutivo | M39: 2016 | N39: - | O39: - | P39: 0 | Q39: - | R39: - | S39: - | T39: - | AC39: 18100 | AD39: 0 | AE39: 0 | AF39: 0 | AG39: 0 | AH39: 0 | AI39: 0 | AJ39: 0 | AK39: 18100 | AL39: 0
B40: 111.13019.3 | C40: Lavori di potenziamento acquedotto zona montana con funzione multipla a servizio delle attività agricole - 1° lotto | D40: No | E40: B8 | F40: B8.1 | G40: 0 | J40: Bellagio | K40: NO | L40: Progetto definitivo | M40: 2016 | N40: - | O40: - | P40: - | Q40: - | R40: - | S40: - | T40: - | AC40: 36200 | AD40: 181000 | AE40: 0 | AF40: 0 | AG40: 0 | AH40: 0 | AI40: 0 | AJ40: 0 | AK40: 36200 | AL40: 181000
B41: 304.13019.1 | C41: Lavori di collettamento dei reflui urbani Civenna - Oliveto Lario - Parè - lotto G | D41: No | E41: C1 | F41: C1.1 | G41: 0 | J41: Bellagio | K41: SI | L41: Progetto esecutivo | M41: 2016 | N41: - | O41: - | P41: - | Q41: - | R41: - | S41: - | T41: - | AC41: 0 | AD41: 540000 | AE41: 0 | AF41: 0 | AG41: 0 | AH41: 0 | AI41: 0 | AJ41: 0 | AK41: 0 | AL41: 540000
B42: 107.13022.1 | C42: Mappatura rete idrica piano di ricerca perdite | D42: Sì | E42: K1 | F42: K1.1 | G42: 508066 | J42: Beregazzo con Figliaro | K42: N.A. | L42: Studio di fattibilità | M42: 2016 | N42: - | O42: - | P42: 100 | Q42: - | R42: - | S42: - | T42: - | AC42: 15600 | AD42: 0 | AE42: 0 | AF42: 0 | AG42: 0 | AH42: 0 | AI42: 0 | AJ42: 0 | AK42: 15600 | AL42: 0
B43: 203.13022.1 | C43: Beregazzo con Figliaro_RETI FOGNARIE - Mappatura / Ricerche perdite / Studi | D43: Sì | E43: K1 | F43: K1.1 | G43: 476635 | J43: Beregazzo con Figliaro | K43: NO | M43: 2016 | N43: - | O43: - | P43: 100 | Q43: - | R43: - | S43: - | T43: - | AC43: 9750 | AD43: 0 | AE43: 0 | AF43: 0 | AG43: 0 | AH43: 0 | AI43: 0 | AJ43: 0 | AK43: 9750 | AL43: 0
B44: 203.13023.1 | C44: Binago_RETI FOGNARIE - Mappatura / Ricerche perdite / Studi | D44: Sì | E44: K1 | F44: K1.1 | G44: 476635 | J44: Binago | K44: NO | M44: 2016 | N44: - | O44: - | P44: 100 | Q44: - | R44: - | S44: - | T44: - | AC44: 9750 | AD44: 0 | AE44: 0 | AF44: 0 | AG44: 0 | AH44: 0 | AI44: 0 | AJ44: 0 | AK44: 9750 | AL44: 0
B45: 203.13024.1 | C45: Bizzarone_RETI FOGNARIE - Mappatura / Ricerche perdite / Studi | D45: Sì | E45: K1 | F45: K1.1 | G45: 476635 | J45: Bizzarone | K45: NO | M45: 2016 | N45: - | O45: - | P45: 100 | Q45: - | R45: - | S45: - | T45: - | AC45: 9750 | AD45: 0 | AE45: 0 | AF45: 0 | AG45: 0 | AH45: 0 | AI45: 0 | AJ45: 0 | AK45: 9750 | AL45: 0
B46: 107.13025.1 | C46: Blessagno_RICERCA PERDITE / MAPPATURA RETE / STUDI | D46: Sì | E46: K1 | F46: K1.1 | G46: 508066 | J46: Blessagno | K46: N.A. | M46: 2016 | N46: - | O46: - | P46: 100 | Q46: - | R46: - | S46: - | T46: - | AC46: 9750 | AD46: 0 | AE46: 0 | AF46: 0 | AG46: 0 | AH46: 0 | AI46: 0 | AJ46: 0 | AK46: 9750 | AL46: 0
B47: 203.13025.1 | C47: Blessagno_RETI FOGNARIE - Mappatura / Ricerche perdite / Studi | D47: Sì | E47: K1 | F47: K1.1 | G47: 476635 | J47: Blessagno | K47: NO | M47: 2016 | N47: - | O47: - | P47: 100 | Q47: - | R47: - | S47: - | T47: - | AC47: 9750 | AD47: 0 | AE47: 0 | AF47: 0 | AG47: 0 | AH47: 0 | AI47: 0 | AJ47: 0 | AK47: 9750 | AL47: 0
B48: 203.13026.1 | C48: Blevio_RETI FOGNARIE - Mappatura / Ricerche perdite / Studi | D48: Sì | E48: K1 | F48: K1.1 | G48: 476635 | J48: Blevio | K48: NO | M48: 2016 | N48: - | O48: - | P48: 100 | Q48: - | R48: - | S48: - | T48: - | AC48: 9750 | AD48: 0 | AE48: 0 | AF48: 0 | AG48: 0 | AH48: 0 | AI48: 0 | AJ48: 0 | AK48: 9750 | AL48: 0
B49: 203.13029.1 | C49: Brenna_RETI FOGNARIE - Mappatura / Ricerche perdite / Studi | D49: Sì | E49: K1 | F49: K1.1 | G49: 476635 | J49: Brenna | K49: NO | M49: 2016 | N49: - | O49: - | P49: 100 | Q49: - | R49: - | S49: - | T49: - | AC49: 9750 | AD49: 0 | AE49: 0 | AF49: 0 | AG49: 0 | AH49: 0 | AI49: 0 | AJ49: 0 | AK49: 9750 | AL49: 0
B50: 305.13029.1 | C50: Vasca di accumulo acque di prima pioggia sul collettore Alzate B,za-Carugo (in Comune di Brenna) Primo lotto funzionale (vedi intervento AdPQ-3^fase - cod. E03011) | D50: Sì | E50: C8 | F50: C8.1 | G50: 210043.56 | J50: BRENNA | K50: NO | L50: Progetto preliminare | M50: 2016 | N50: - | O50: - | P50: massimo 1 episodio ogni 2 km di rete fognaria presenti nel Comune | Q50: - | R50: - | S50: - | T50: - | AC50: 1036328.66 | AD50: 193671.34 | AE50: 0 | AF50: 0 | AG50: 0 | AH50: 0 | AI50: 0 | AJ50: 0 | AK50: 1036328.66 | AL50: 193671.34
B51: 203.13030.1 | C51: Brienno_RETI FOGNARIE - Mappatura / Ricerche perdite / Studi | D51: Sì | E51: K1 | F51: K1.1 | G51: 476635 | J51: Brienno | K51: NO | M51: 2016 | N51: - | O51: - | P51: 100 | Q51: - | R51: - | S51: - | T51: - | AC51: 9750 | AD51: 0 | AE51: 0 | AF51: 0 | AG51: 0 | AH51: 0 | AI51: 0 | AJ51: 0 | AK51: 9750 | AL51: 0
B52: 201.13032.1 | C52: Ambito trasformazione AT1 (con opere di urbanizzazione primaria) - Collettamento via per Civiglio area Civiasch | D52: Sì | E52: C1 | F52: C1.1 | G52: 0 | H52: 91 | I52: rilevata | J52: Brunate | K52: NO | L52: Studio di fattibilità | M52: 2016 | N52: - | O52: - | P52: - | Q52: - | R52: - | S52: - | T52: - | AC52: 60000 | AD52: 0 | AE52: 0 | AF52: 0 | AG52: 0 | AH52: 0 | AI52: 0 | AJ52: 0 | AK52: 60000 | AL52: 0
B53: 203.13032.1 | C53: Brunate_RETI FOGNARIE - Mappatura / Ricerche perdite / Studi | D53: Sì | E53: K1 | F53: K1.1 | G53: 476635 | J53: Brunate | K53: NO | M53: 2016 | N53: - | O53: - | P53: 100 | Q53: - | R53: - | S53: - | T53: - | AC53: 9750 | AD53: 0 | AE53: 0 | AF53: 0 | AG53: 0 | AH53: 0 | AI53: 0 | AJ53: 0 | AK53: 9750 | AL53: 0
B54: 106.13034.1 | C54: Costruzione impianto di strippaggio presso la centrale aziendale di Bulgarograsso per trattamento acque contaminate da solventi clorurati emunte dai pozzi aziendali Baragiola di Bulgarograsso e Patrioti di Guanzate | D54: Sì | E54: P2 | F54: P2.1 | G54: 127812 | J54: Bulgarograsso | K54: NO | M54: 2016 | N54: - | O54: - | P54: 100% giudizi almeno DISCRETO | Q54: - | R54: - | S54: - | T54: - | AC54: 65310.91 | AD54: 38689.09 | AE54: 0 | AF54: 0 | AG54: 0 | AH54: 0 | AI54: 0 | AJ54: 0 | AK54: 65310.91 | AL54: 38689.09
B55: 403.13034.1 | C55: adeguamento dei pretrattenti iniziali del depuratore di Bulgarograsso | D55: No | E55: D2 | F55: D2.9 | G55: 0 | J55: Bulgarograsso | K55: NO | L55: Progetto preliminare | M55: 2016 | N55: - | O55: - | P55: 100% giudizi Conformi / Regolamentari | Q55: - | R55: - | S55: - | T55: - | AC55: 328000 | AD55: 0 | AE55: 0 | AF55: 0 | AG55: 0 | AH55: 0 | AI55: 0 | AJ55: 0 | AK55: 328000 | AL55: 0
B56: 403.13034.2 | C56: realizzazione di by-pass interno della sezione biologica e di sedimentazione per i periodi di alta portata in caso di pioggie | D56: No | E56: D2 | F56: D2.9 | G56: 0 | J56: Bulgarograsso | K56: NO | L56: Progetto preliminare | M56: 2016 | N56: - | O56: - | P56: 100% giudizi Conformi / Regolamentari | Q56: - | R56: - | S56: - | T56: - | AC56: 242000 | AD56: 0 | AE56: 0 | AF56: 0 | AG56: 0 | AH56: 0 | AI56: 0 | AJ56: 0 | AK56: 242000 | AL56: 0
B57: 403.13034.1 | C57: interventi di adeguamento impianto di depurazione di Bulgarograsso | D57: No | E57: D2 | F57: D2.9 | G57: 0 | J57: Bulgarograsso | K57: NO | M57: 2016 | N57: - | O57: - | P57: 100% giudizi Conformi / Regolamentari | Q57: - | R57: - | S57: - | T57: - | AC57: 50000 | AD57: 0 | AE57: 0 | AF57: 0 | AG57: 0 | AH57: 0 | AI57: 0 | AJ57: 0 | AK57: 50000 | AL57: 0
B58: 202.13034.1 | C58: Rifacimento linea fognaria centro storico - via Battisti - ai prati -Mosaico | D58: Sì | E58: C2 | F58: C2.1 | G58: 0 | J58: Bulgarograsso | K58: NO | L58: Progetto preliminare | M58: 2016 | N58: - | O58: - | P58: - | Q58: - | R58: - | S58: - | T58: - | AC58: 198609.65 | AD58: 138718.47 | AE58: 0 | AF58: 0 | AG58: 0 | AH58: 0 | AI58: 0 | AJ58: 0 | AK58: 198609.65 | AL58: 138718.47
B59: 107.13035.1 | C59: Cabiate_RICERCA PERDITE / MAPPATURA RETE / STUDI | D59: Sì | E59: K1 | F59: K1.1 | G59: 508066 | J59: Cabiate | K59: N.A. | M59: 2016 | N59: - | O59: - | P59: 100 | Q59: - | R59: - | S59: - | T59: - | AC59: 9750 | AD59: 0 | AE59: 0 | AF59: 0 | AG59: 0 | AH59: 0 | AI59: 0 | AJ59: 0 | AK59: =SUM(AC59+AE59+AG59+AI59) -> 9750 | AL59: =SUM(AD59+AF59+AH59+AJ59) -> 0
B60: 202.13036.1 | C60: LAVORI DI “RISANAMENTO E RIFACIMENTO COLLETTORE FOGNARIO DI VIA S. ANNA, DALLA FRAZIONE DI CASLINO AL PIANO AL COLLETTORE CONSORTILE – COMUNE DI CADORAGO (CO)” | D60: Sì | E60: C2 | F60: C2.1 | G60: 0 | J60: Cadorago | K60: SI | L60: Progetto esecutivo | M60: 2016 | N60: - | O60: - | P60: - | Q60: - | R60: - | S60: - | T60: - | AC60: 73573.89 | AD60: 252000 | AE60: 0 | AF60: 0 | AG60: 0 | AH60: 0 | AI60: 0 | AJ60: 0 | AK60: 73573.89 | AL60: 252000
B61: 202.13037.2 | C61: LAVORI URGENTI DI RIFACIMENTO RETE FOGNARIA E RETE ACQUEDOTTO DI VIA AI MONTI E VIA IV NOVEMBRE | D61: No | E61: C2 | F61: C2.1 | G61: 0 | J61: Caglio | L61: Progetto esecutivo | M61: 2016 | N61: - | O61: - | P61: - | Q61: - | R61: - | S61: - | T61: - | AC61: 0 | AD61: 250000 | AE61: 0 | AF61: 0 | AG61: 0 | AH61: 0 | AI61: 0 | AJ61: 0 | AK61: 0 | AL61: 250000
B62: 202.13037.3 | C62: LAVORI URGENTI DI RIFACIMENTO RETE FOGNARIA E RETE ACQUEDOTTO NEL CENTRO (VIA CARBONINI - P.ZA VITTORIO EMANUELE E PIAZZA MERCATO) | D62: No | E62: C2 | F62: C2.1 | G62: 0 | J62: Caglio | L62: Progetto esecutivo | M62: 2016 | N62: - | O62: - | P62: - | Q62: - | R62: - | S62: - | T62: - | AC62: 0 | AD62: 170000 | AE62: 0 | AF62: 0 | AG62: 0 | AH62: 0 | AI62: 0 | AJ62: 0 | AK62: 0 | AL62: 170000
B63: 203.13037.1 | C63: Caglio_RETI FOGNARIE - Mappatura / Ricerche perdite / Studi | D63: Sì | E63: K1 | F63: K1.1 | G63: 476635 | J63: Caglio | K63: NO | M63: 2016 | N63: - | O63: - | P63: 100 | Q63: - | R63: - | S63: - | T63: - | AC63: 9750 | AD63: 0 | AE63: 0 | AF63: 0 | AG63: 0 | AH63: 0 | AI63: 0 | AJ63: 0 | AK63: 9750 | AL63: 0
B64: 203.13038.1 | C64: Cagno_RETI FOGNARIE - Mappatura / Ricerche perdite / Studi | D64: Sì | E64: K1 | F64: K1.1 | G64: 476635 | J64: Cagno | K64: NO | M64: 2016 | N64: - | O64: - | P64: 100 | Q64: - | R64: - | S64: - | T64: - | AC64: 9750 | AD64: 0 | AE64: 0 | AF64: 0 | AG64: 0 | AH64: 0 | AI64: 0 | AJ64: 0 | AK64: 9750 | AL64: 0
B65: 100.13041.1 | C65: Allacciamenti alla rete acquedottistica | D65: No | E65: - | F65: - | G65: 0 | J65: Cantù | K65: NO | M65: 2016 | N65: - | O65: - | P65: - | Q65: - | R65: - | S65: - | T65: - | AC65: 0 | AD65: 64000 | AE65: 0 | AF65: 0 | AG65: 0 | AH65: 0 | AI65: 0 | AJ65: 0 | AK65: 0 | AL65: 64000
B66: 102.13041.1 | C66: Cantù_CAPTAZIONI - manutenzione straordinaria (ulteriore int. pianificati non prioritari) | D66: No | E66: A1 | F66: A1.1 | G66: 0 | J66: Cantù | K66: NO | L66: Progetto preliminare | M66: 2016 | N66: - | O66: - | P66: 0 | Q66: - | R66: - | S66: - | T66: - | AC66: 8000 | AD66: 0 | AE66: 0 | AF66: 0 | AG66: 0 | AH66: 0 | AI66: 0 | AJ66: 0 | AK66: 8000 | AL66: 0
B67: 107.13041.1 | C67: Cantù_RICERCA PERDITE / MAPPATURA RETE / STUDI | D67: Sì | E67: K1 | F67: K1.1 | G67: 508066 | J67: Cantù | K67: N.A. | M67: 2016 | N67: - | O67: - | P67: 100 | Q67: - | R67: - | S67: - | T67: - | AC67: 9750 | AD67: 0 | AE67: 0 | AF67: 0 | AG67: 0 | AH67: 0 | AI67: 0 | AJ67: 0 | AK67: 9750 | AL67: 0
B68: 200.13041.1 | C68: Allacciamenti alla rete fognaria | D68: No | E68: - | F68: - | G68: 0 | J68: Cantù | K68: NO | M68: 2016 | N68: - | O68: - | P68: - | Q68: - | R68: - | S68: - | T68: - | AC68: 0 | AD68: 94400 | AE68: 0 | AF68: 0 | AG68: 0 | AH68: 0 | AI68: 0 | AJ68: 0 | AK68: 0 | AL68: 94400
B69: 201.13041.1 | C69: Estensione fognatura via Como | D69: No | E69: C1 | F69: C1.1 | G69: 0 | J69: Cantù | K69: NO | L69: Progetto preliminare | M69: 2016 | N69: - | O69: - | P69: - | Q69: - | R69: - | S69: - | T69: - | AC69: 90000 | AD69: 210000 | AE69: 0 | AF69: 0 | AG69: 0 | AH69: 0 | AI69: 0 | AJ69: 0 | AK69: 90000 | AL69: 210000
B70: 102.13042.1 | C70: Canzo_Pozzo Ca' Bianca | D70: No | E70: A1 | F70: A1.1 | G70: 0 | J70: Canzo | K70: NO | L70: Studio di fattibilità | M70: 2016 | N70: - | O70: - | P70: 0 | Q70: - | R70: - | S70: - | T70: - | AC70: 8000 | AD70: 0 | AE70: 0 | AF70: 0 | AG70: 0 | AH70: 0 | AI70: 0 | AJ70: 0 | AK70: 8000 | AL70: 0
B71: 203.13042.1 | C71: Canzo_RETI FOGNARIE - Mappatura / Ricerche perdite / Studi | D71: Sì | E71: K1 | F71: K1.1 | G71: 476635 | J71: Canzo | K71: NO | M71: 2016 | N71: - | O71: - | P71: 100 | Q71: - | R71: - | S71: - | T71: - | AC71: 9750 | AD71: 0 | AE71: 0 | AF71: 0 | AG71: 0 | AH71: 0 | AI71: 0 | AJ71: 0 | AK71: 9750 | AL71: 0
B72: 107.13043.1 | C72: Mappatura rete idrica piano di ricerca perdite | D72: No | E72: K1 | F72: K1.1 | G72: 508066 | J72: Capiago Intimiano | K72: N.A. | L72: Studio di fattibilità | M72: 2016 | N72: - | O72: - | P72: 100 | Q72: - | R72: - | S72: - | T72: - | AC72: 19500 | AD72: 0 | AE72: 0 | AF72: 0 | AG72: 0 | AH72: 0 | AI72: 0 | AJ72: 0 | AK72: 19500 | AL72: 0
B73: 304.13043.1 | C73: Collettore fognario di collegamento rete fognaria di Capiago Intimiano | D73: No | E73: C1 | F73: C1.1 | G73: 0 | J73: Capiago Intimiano | K73: NO | L73: Progetto esecutivo | M73: 2016 | N73: - | O73: - | P73: - | Q73: - | R73: - | S73: - | T73: - | AC73: 90000 | AD73: 0 | AE73: 0 | AF73: 0 | AG73: 0 | AH73: 0 | AI73: 0 | AJ73: 0 | AK73: 90000 | AL73: 0
B74: 203.13043.1 | C74: Capiago Intimiano_RETI FOGNARIE - Mappatura / Ricerche perdite / Studi | D74: Sì | E74: K1 | F74: K1.1 | G74: 476635 | J74: Capiago Intimiano | K74: NO | M74: 2016 | N74: - | O74: - | P74: 100 | Q74: - | R74: - | S74: - | T74: - | AC74: 9750 | AD74: 0 | AE74: 0 | AF74: 0 | AG74: 0 | AH74: 0 | AI74: 0 | AJ74: 0 | AK74: 9750 | AL74: 0
B75: 107.13044.1 | C75: Carate Urio_RICERCA PERDITE / MAPPATURA RETE / STUDI | D75: Sì | E75: K1 | F75: K1.1 | G75: 508066 | J75: Carate Urio | K75: N.A. | M75: 2016 | N75: - | O75: - | P75: 100 | Q75: - | R75: - | S75: - | T75: - | AC75: 9750 | AD75: 0 | AE75: 0 | AF75: 0 | AG75: 0 | AH75: 0 | AI75: 0 | AJ75: 0 | AK75: 9750 | AL75: 0
B76: 201.13044.1 | C76: Realizzazione Nuovo tratto di fognatura - località Sassello (lotto 2) | D76: No | E76: C1 | F76: C1.1 | G76: 0 | J76: Carate Urio | K76: NO | L76: Progetto preliminare | M76: 2016 | N76: - | O76: - | P76: - | Q76: - | R76: - | S76: - | T76: - | AC76: 79606.14 | AD76: 314500 | AE76: 0 | AF76: 0 | AG76: 0 | AH76: 0 | AI76: 0 | AJ76: 0 | AK76: 79606.14 | AL76: 314500
B77: 405.13046.1 | C77: vasche di accumulo / fitodepurazione | D77: Sì | E77: D6 | F77: D6.3 | G77: 0 | J77: Carimate | K77: SI | L77: Progetto esecutivo | M77: 2016 | N77: - | O77: - | P77: 1 episodio/anno per depuratore | Q77: - | R77: - | S77: - | T77: - | AC77: 160000 | AD77: 2000000 | AE77: 0 | AF77: 0 | AG77: 0 | AH77: 0 | AI77: 0 | AJ77: 0 | AK77: 160000 | AL77: 2000000
B78: 203.13046.1 | C78: Carimate_RETI FOGNARIE - Mappatura / Ricerche perdite / Studi | D78: Sì | E78: K1 | F78: K1.1 | G78: 476635 | J78: Carimate | K78: NO | M78: 2016 | N78: - | O78: - | P78: 100 | Q78: - | R78: - | S78: - | T78: - | AC78: 9750 | AD78: 0 | AE78: 0 | AF78: 0 | AG78: 0 | AH78: 0 | AI78: 0 | AJ78: 0 | AK78: 9750 | AL78: 0
B79: 201.13047.1 | C79: Realizzazione collettori fognari in via per Naggio | D79: Sì | E79: C1 | F79: C1.1 | G79: 0 | H79: 40 | I79: rilevata | J79: Carlazzo | L79: Progetto esecutivo | M79: 2016 | N79: - | O79: - | P79: - | Q79: - | R79: - | S79: - | T79: - | AC79: 130000 | AD79: 0 | AE79: 0 | AF79: 0 | AG79: 0 | AH79: 0 | AI79: 0 | AJ79: 0 | AK79: 130000 | AL79: 0
B80: 201.13047.2 | C80: Realizzazione collettori fognari in via Statale | D80: Sì | E80: C1 | F80: C1.1 | G80: 0 | H80: 30 | I80: rilevata | J80: Carlazzo | L80: Progetto esecutivo | M80: 2016 | N80: - | O80: - | P80: - | Q80: - | R80: - | S80: - | T80: - | AC80: 68000 | AD80: 0 | AE80: 0 | AF80: 0 | AG80: 0 | AH80: 0 | AI80: 0 | AJ80: 0 | AK80: 68000 | AL80: 0
B81: 203.13047.1 | C81: Carlazzo_RETI FOGNARIE - Mappatura / Ricerche perdite / Studi (prioritario con attivazione immediata) | D81: Sì | E81: K1 | F81: K1.1 | G81: 476635 | J81: Carlazzo | K81: NO | M81: 2016 | N81: - | O81: - | P81: 100 | Q81: - | R81: - | S81: - | T81: - | AC81: 9750 | AD81: 0 | AE81: 0 | AF81: 0 | AG81: 0 | AH81: 0 | AI81: 0 | AJ81: 0 | AK81: 9750 | AL81: 0
B82: 111.13048.2 | C82: Lavori di risanamento strutturale del serbatoio pensile dell'acquedotto comunale | D82: No | E82: B8 | F82: B8.1 | G82: 0 | J82: CARUGO | K82: NO | L82: Progetto preliminare | M82: 2016 | N82: - | O82: - | P82: - | Q82: - | R82: - | S82: - | T82: - | AC82: 90500 | AD82: 0 | AE82: 0 | AF82: 0 | AG82: 0 | AH82: 0 | AI82: 0 | AJ82: 0 | AK82: 90500 | AL82: 0
B83: 203.13048.1 | C83: Carugo_RETI FOGNARIE - Mappatura / Ricerche perdite / Studi - Agglomerato 1 | D83: Sì | E83: K1 | F83: K1.1 | G83: 476635 | J83: Carugo | K83: NO | M83: 2016 | N83: - | O83: - | P83: 100 | Q83: - | R83: - | S83: - | T83: - | AC83: 9545.25 | AD83: 0 | AE83: 0 | AF83: 0 | AG83: 0 | AH83: 0 | AI83: 0 | AJ83: 0 | AK83: 9545.25 | AL83: 0
B84: 203.13048.2 | C84: Carugo_RETI FOGNARIE - Mappatura / Ricerche perdite / Studi - Agglomerato 2 | D84: Sì | E84: K1 | F84: K1.1 | G84: 476635 | J84: Carugo | K84: NO | M84: 2016 | N84: - | O84: - | P84: 100 | Q84: - | R84: - | S84: - | T84: - | AC84: 204.75 | AD84: 0 | AE84: 0 | AF84: 0 | AG84: 0 | AH84: 0 | AI84: 0 | AJ84: 0 | AK84: 204.75 | AL84: 0
B85: 107.13050.1 | C85: Casasco d'Intelvi_RICERCA PERDITE / MAPPATURA RETE / STUDI | D85: Sì | E85: K1 | F85: K1.1 | G85: 508066 | J85: Casasco d'Intelvi | K85: N.A. | M85: 2016 | N85: - | O85: - | P85: 100 | Q85: - | R85: - | S85: - | T85: - | AC85: 9750 | AD85: 0 | AE85: 0 | AF85: 0 | AG85: 0 | AH85: 0 | AI85: 0 | AJ85: 0 | AK85: 9750 | AL85: 0
B86: 201.13050.1 | C86: Condotte fognarie nella frazione Piazza Grande "lotto 1" | D86: No | E86: C1 | F86: C1.1 | G86: 0 | H86: 35 | I86: rilevata | J86: Casasco d'Intelvi | K86: NO | L86: Progetto preliminare | M86: 2016 | N86: - | O86: - | P86: - | Q86: - | R86: - | S86: - | T86: - | AC86: 179653.68 | AD86: 260346.32 | AE86: 0 | AF86: 0 | AG86: 0 | AH86: 0 | AI86: 0 | AJ86: 0 | AK86: 179653.68 | AL86: 260346.32
B87: 203.13050.1 | C87: Casasco d'Intelvi_RETI FOGNARIE - Mappatura / Ricerche perdite / Studi | D87: Sì | E87: K1 | F87: K1.1 | G87: 476635 | J87: Casasco d'Intelvi | K87: NO | M87: 2016 | N87: - | O87: - | P87: 100 | Q87: - | R87: - | S87: - | T87: - | AC87: 9750 | AD87: 0 | AE87: 0 | AF87: 0 | AG87: 0 | AH87: 0 | AI87: 0 | AJ87: 0 | AK87: 9750 | AL87: 0
B88: 203.13052.1 | C88: Caslino d'Erba_RETI FOGNARIE - Mappatura / Ricerche perdite / Studi | D88: Sì | E88: K1 | F88: K1.1 | G88: 476635 | J88: Caslino d'Erba | K88: NO | M88: 2016 | N88: - | O88: - | P88: 100 | Q88: - | R88: - | S88: - | T88: - | AC88: 9750 | AD88: 0 | AE88: 0 | AF88: 0 | AG88: 0 | AH88: 0 | AI88: 0 | AJ88: 0 | AK88: 9750 | AL88: 0
B89: 110.13053.1 | C89: Rifacimento rete via tiziano | D89: No | E89: B4 | F89: B4.1 | G89: 10044 | J89: Casnate con Bernate | K89: NO | L89: Studio di fattibilità | M89: 2016 | N89: - | O89: - | P89: - | Q89: - | R89: - | S89: - | T89: - | AC89: 47100 | AD89: 0 | AE89: 0 | AF89: 0 | AG89: 0 | AH89: 0 | AI89: 0 | AJ89: 0 | AK89: 47100 | AL89: 0
B90: 107.13055.1 | C90: Mappatura rete idrica piano di ricerca perdite | D90: Sì | E90: K1 | F90: K1.1 | G90: 508066 | J90: Cassina Rizzardi | K90: N.A. | L90: Studio di fattibilità | M90: 2016 | N90: - | O90: - | P90: 100 | Q90: - | R90: - | S90: - | T90: - | AC90: 15600 | AD90: 0 | AE90: 0 | AF90: 0 | AG90: 0 | AH90: 0 | AI90: 0 | AJ90: 0 | AK90: 15600 | AL90: 0
B91: 203.13055.1 | C91: Cassina Rizzardi_RETI FOGNARIE - Mappatura / Ricerche perdite / Studi | D91: Sì | E91: K1 | F91: K1.1 | G91: 476635 | J91: Cassina Rizzardi | K91: NO | M91: 2016 | N91: - | O91: - | P91: 100 | Q91: - | R91: - | S91: - | T91: - | AC91: 9750 | AD91: 0 | AE91: 0 | AF91: 0 | AG91: 0 | AH91: 0 | AI91: 0 | AJ91: 0 | AK91: 9750 | AL91: 0
B92: 203.13058.1 | C92: Castelmarte_RETI FOGNARIE - Mappatura / Ricerche perdite / Studi | D92: Sì | E92: K1 | F92: K1.1 | G92: 476635 | J92: Castelmarte | K92: NO | M92: 2016 | N92: - | O92: - | P92: 100 | Q92: - | R92: - | S92: - | T92: - | AC92: 9750 | AD92: 0 | AE92: 0 | AF92: 0 | AG92: 0 | AH92: 0 | AI92: 0 | AJ92: 0 | AK92: 9750 | AL92: 0
B93: 107.13059.1 | C93: Mappatura rete idrica piano di ricerca perdite | D93: Sì | E93: K1 | F93: K1.1 | G93: 508066 | J93: Castelnuovo Bozzente | K93: N.A. | L93: Studio di fattibilità | M93: 2016 | N93: - | O93: - | P93: 100 | Q93: - | R93: - | S93: - | T93: - | AC93: 11775 | AD93: 0 | AE93: 0 | AF93: 0 | AG93: 0 | AH93: 0 | AI93: 0 | AJ93: 0 | AK93: 11775 | AL93: 0
B94: 403.13059.1 | C94: Messa in sicurezza delle strutture murarie delle vasche soggette a deterioramento e fessuramento | D94: Sì | E94: D2 | F94: D2.9 | G94: 0 | J94: Castelnuovo Bozzente | K94: NO | L94: Studio di fattibilità | M94: 2016 | N94: - | O94: - | P94: 100% giudizi Conformi / Regolamentari | Q94: - | R94: - | S94: - | T94: - | AC94: 20000 | AD94: 0 | AE94: 0 | AF94: 0 | AG94: 0 | AH94: 0 | AI94: 0 | AJ94: 0 | AK94: 20000 | AL94: 0
B95: 403.13059.1 | C95: Adeguamento del sistema di sollevamento dei reflui in ingresso | D95: Sì | E95: D2 | F95: D2.9 | G95: 0 | J95: Castelnuovo Bozzente | K95: NO | L95: Studio di fattibilità | M95: 2016 | N95: - | O95: - | P95: 100% giudizi Conformi / Regolamentari | Q95: - | R95: - | S95: - | T95: - | AC95: 15000 | AD95: 0 | AE95: 0 | AF95: 0 | AG95: 0 | AH95: 0 | AI95: 0 | AJ95: 0 | AK95: 15000 | AL95: 0
B96: 406.13059.1 | C96: Completamento sistema di telecontrollo del depuratore | D96: Sì | E96: K3 | F96: K3.1 | G96: 0 | J96: Castelnuovo Bozzente | K96: N.A. | L96: Studio di fattibilità | M96: 2016 | N96: - | O96: - | P96: - | Q96: - | R96: - | S96: - | T96: - | AC96: 10000 | AD96: 0 | AE96: 0 | AF96: 0 | AG96: 0 | AH96: 0 | AI96: 0 | AJ96: 0 | AK96: 10000 | AL96: 0
B97: 203.13059.1 | C97: Castelnuovo Bozzente_RETI FOGNARIE - Mappatura / Ricerche perdite / Studi | D97: Sì | E97: K1 | F97: K1.1 | G97: 476635 | J97: Castelnuovo Bozzente | K97: NO | M97: 2016 | N97: - | O97: - | P97: 100 | Q97: - | R97: - | S97: - | T97: - | AC97: 9750 | AD97: 0 | AE97: 0 | AF97: 0 | AG97: 0 | AH97: 0 | AI97: 0 | AJ97: 0 | AK97: 9750 | AL97: 0
B98: 102.13060.1 | C98: RIPRISTINO E RECUPERO SORGENTI AD USO IDROPOTABILE A SERVIZIO DELL'ACQUEDOTTO COMUNALE DI CASTIGLIONE D'INTELVI | D98: Sì | E98: A1 | F98: A1.1 | G98: 0 | J98: San Fedele Intelvi | K98: N.A. | L98: Progetto esecutivo | M98: 2016 | N98: - | O98: - | P98: 0 | Q98: - | R98: - | S98: - | T98: - | AC98: 32496.11 | AD98: 14500 | AE98: 0 | AF98: 0 | AG98: 0 | AH98: 0 | AI98: 0 | AJ98: 0 | AK98: 32496.11 | AL98: 14500
B99: 203.13061.1 | C99: Cavallasca_RETI FOGNARIE - Mappatura / Ricerche perdite / Studi - Agglomerato 1 | D99: Sì | E99: K1 | F99: K1.1 | G99: 476635 | J99: Cavallasca | K99: NO | M99: 2016 | N99: - | O99: - | P99: 100 | Q99: - | R99: - | S99: - | T99: - | AC99: 770.25 | AD99: 0 | AE99: 0 | AF99: 0 | AG99: 0 | AH99: 0 | AI99: 0 | AJ99: 0 | AK99: 770.25 | AL99: 0
B100: 203.13061.2 | C100: Cavallasca_RETI FOGNARIE - Mappatura / Ricerche perdite / Studi - Agglomerato 2 | D100: Sì | E100: K1 | F100: K1.1 | G100: 476635 | J100: Cavallasca | K100: NO | M100: 2016 | N100: - | O100: - | P100: 100 | Q100: - | R100: - | S100: - | T100: - | AC100: 8979.75 | AD100: 0 | AE100: 0 | AF100: 0 | AG100: 0 | AH100: 0 | AI100: 0 | AJ100: 0 | AK100: 8979.75 | AL100: 0
B101: 107.13062.1 | C101: Cavargna_RICERCA PERDITE / MAPPATURA RETE / STUDI | D101: Sì | E101: K1 | F101: K1.1 | G101: 508066 | J101: Cavargna | K101: N.A. | M101: 2016 | N101: - | O101: - | P101: 100 | Q101: - | R101: - | S101: - | T101: - | AC101: 9750 | AD101: 0 | AE101: 0 | AF101: 0 | AG101: 0 | AH101: 0 | AI101: 0 | AJ101: 0 | AK101: 9750 | AL101: 0
B102: 203.13062.1 | C102: Cavargna_RETI FOGNARIE - Mappatura / Ricerche perdite / Studi | D102: Sì | E102: K1 | F102: K1.1 | G102: 476635 | J102: Cavargna | K102: NO | M102: 2016 | N102: - | O102: - | P102: 100 | Q102: - | R102: - | S102: - | T102: - | AC102: 7391.48 | AD102: 0 | AE102: 0 | AF102: 0 | AG102: 0 | AH102: 0 | AI102: 0 | AJ102: 0 | AK102: 7391.48 | AL102: 0
B103: 203.13062.2 | C103: Cavargna - Dosso Finsuè_RETI FOGNARIE - Mappatura / Ricerche perdite / Studi | D103: Sì | E103: K1 | F103: K1.1 | G103: 476635 | J103: Cavargna | K103: NO | M103: 2016 | N103: - | O103: - | P103: 100 | Q103: - | R103: - | S103: - | T103: - | AC103: 1967.55 | AD103: 0 | AE103: 0 | AF103: 0 | AG103: 0 | AH103: 0 | AI103: 0 | AJ103: 0 | AK103: 1967.55 | AL103: 0
B104: 203.13062.3 | C104: Cavargna - Mondrago_RETI FOGNARIE - Mappatura / Ricerche perdite / Studi | D104: Sì | E104: K1 | F104: K1.1 | G104: 476635 | J104: Cavargna | K104: NO | M104: 2016 | N104: - | O104: - | P104: 100 | Q104: - | R104: - | S104: - | T104: - | AC104: 390.98 | AD104: 0 | AE104: 0 | AF104: 0 | AG104: 0 | AH104: 0 | AI104: 0 | AJ104: 0 | AK104: 390.98 | AL104: 0
B105: 201.13063.1 | C105: REALIZZAZIONE FOGNATURA ACQUE NERE IN VIA FONTANA | D105: No | E105: C1 | F105: C1.1 | G105: 0 | J105: Cerano d'Intelvi | L105: Progetto esecutivo | M105: 2016 | N105: - | O105: - | P105: - | Q105: - | R105: - | S105: - | T105: - | AC105: 60000 | AD105: 0 | AE105: 0 | AF105: 0 | AG105: 0 | AH105: 0 | AI105: 0 | AJ105: 0 | AK105: 60000 | AL105: 0
B106: 203.13064.1 | C106: Cermenate_RETI FOGNARIE - Mappatura / Ricerche perdite / Studi | D106: Sì | E106: K1 | F106: K1.1 | G106: 476635 | J106: Cermenate | K106: NO | M106: 2016 | N106: - | O106: - | P106: 100 | Q106: - | R106: - | S106: - | T106: - | AC106: 9750 | AD106: 0 | AE106: 0 | AF106: 0 | AG106: 0 | AH106: 0 | AI106: 0 | AJ106: 0 | AK106: 9750 | AL106: 0
B107: 200.13065.1 | C107: Allacciamenti alla rete fognaria | D107: No | E107: - | F107: - | G107: 0 | J107: Cernobbio | K107: NO | M107: 2016 | N107: - | O107: - | P107: - | Q107: - | R107: - | S107: - | T107: - | AC107: 0 | AD107: 37760 | AE107: 0 | AF107: 0 | AG107: 0 | AH107: 0 | AI107: 0 | AJ107: 0 | AK107: 0 | AL107: 37760
B108: 201.13065.1 | C108: Fognatura Via Umberto I° e Via Pasubio | D108: No | E108: C1 | F108: C1.1 | G108: 0 | J108: Cernobbio | K108: NO | L108: Progetto preliminare | M108: 2016 | N108: - | O108: - | P108: - | Q108: - | R108: - | S108: - | T108: - | AC108: 200000 | AD108: 0 | AE108: 0 | AF108: 0 | AG108: 0 | AH108: 0 | AI108: 0 | AJ108: 0 | AK108: 200000 | AL108: 0
B109: 107.13068.1 | C109: Cirimido_RICERCA PERDITE / MAPPATURA RETE / STUDI | D109: Sì | E109: K1 | F109: K1.1 | G109: 508066 | J109: Cirimido | K109: N.A. | M109: 2016 | N109: - | O109: - | P109: 100 | Q109: - | R109: - | S109: - | T109: - | AC109: 9750 | AD109: 0 | AE109: 0 | AF109: 0 | AG109: 0 | AH109: 0 | AI109: 0 | AJ109: 0 | AK109: 9750 | AL109: 0
B110: 203.13068.1 | C110: Cirimido_RETI FOGNARIE - Mappatura / Ricerche perdite / Studi (prioritario con attivazione immediata) | D110: Sì | E110: K1 | F110: K1.1 | G110: 476635 | J110: Cirimido | K110: NO | M110: 2016 | N110: - | O110: - | P110: 100 | Q110: - | R110: - | S110: - | T110: - | AC110: 9750 | AD110: 0 | AE110: 0 | AF110: 0 | AG110: 0 | AH110: 0 | AI110: 0 | AJ110: 0 | AK110: 9750 | AL110: 0
B111: 107.13071.1 | C111: Claino con Osteno_RICERCA PERDITE / MAPPATURA RETE / STUDI | D111: Sì | E111: K1 | F111: K1.1 | G111: 508066 | J111: Claino con Osteno | K111: N.A. | M111: 2016 | N111: - | O111: - | P111: 100 | Q111: - | R111: - | S111: - | T111: - | AC111: 5005.6 | AD111: 0 | AE111: 0 | AF111: 0 | AG111: 0 | AH111: 0 | AI111: 0 | AJ111: 0 | AK111: 5005.6 | AL111: 0
B112: 203.13071.1 | C112: Claino con Osteno_RETI FOGNARIE - Mappatura / Ricerche perdite / Studi (prioritario con attivazione immediata) | D112: Sì | E112: K1 | F112: K1.1 | G112: 476635 | J112: Claino con Osteno | K112: NO | M112: 2016 | N112: - | O112: - | P112: 100 | Q112: - | R112: - | S112: - | T112: - | AC112: 9750 | AD112: 0 | AE112: 0 | AF112: 0 | AG112: 0 | AH112: 0 | AI112: 0 | AJ112: 0 | AK112: 9750 | AL112: 0
B113: 107.13074.1 | C113: Colonno_RICERCA PERDITE / MAPPATURA RETE / STUDI | D113: Sì | E113: K1 | F113: K1.1 | G113: 508066 | J113: Colonno | K113: N.A. | M113: 2016 | N113: - | O113: - | P113: 100 | Q113: - | R113: - | S113: - | T113: - | AC113: 9750 | AD113: 0 | AE113: 0 | AF113: 0 | AG113: 0 | AH113: 0 | AI113: 0 | AJ113: 0 | AK113: 9750 | AL113: 0
B114: 203.13074.1 | C114: Colonno_RETI FOGNARIE - Mappatura / Ricerche perdite / Studi (prioritario con attivazione immediata) | D114: Sì | E114: K1 | F114: K1.1 | G114: 476635 | J114: Colonno | K114: NO | M114: 2016 | N114: - | O114: - | P114: 100 | Q114: - | R114: - | S114: - | T114: - | AC114: 9750 | AD114: 0 | AE114: 0 | AF114: 0 | AG114: 0 | AH114: 0 | AI114: 0 | AJ114: 0 | AK114: 9750 | AL114: 0
B115: 107.13251.3 | C115: Colverde_RICERCA PERDITE / MAPPATURA RETE / STUDI (ulteriore int. pianificati non prioritari) | D115: Sì | E115: K1 | F115: K1.1 | G115: 508066 | J115: Colverde | K115: N.A. | M115: 2016 | N115: - | O115: - | P115: 100 | Q115: - | R115: - | S115: - | T115: - | AC115: 9750 | AD115: 0 | AE115: 0 | AF115: 0 | AG115: 0 | AH115: 0 | AI115: 0 | AJ115: 0 | AK115: 9750 | AL115: 0
B116: 200.13075.1 | C116: Allacciamenti alla rete fognaria - Agglomerato 1 | D116: No | E116: - | F116: - | G116: 0 | J116: Como | K116: NO | M116: 2016 | N116: - | O116: - | P116: - | Q116: - | R116: - | S116: - | T116: - | AC116: 0 | AD116: 219008 | AE116: 0 | AF116: 0 | AG116: 0 | AH116: 0 | AI116: 0 | AJ116: 0 | AK116: 0 | AL116: 219008
B117: 304.13075.1 | C117: collettore Trecallo | D117: Sì | E117: C1 | F117: C1.1 | G117: 0 | H117: 950 | I117: rilevata | J117: Como | K117: SI | L117: Progetto esecutivo | M117: 2016 | N117: - | O117: - | P117: - | Q117: - | R117: - | S117: - | T117: - | AC117: 0 | AD117: 300000 | AE117: 0 | AF117: 0 | AG117: 0 | AH117: 0 | AI117: 0 | AJ117: 0 | AK117: 0 | AL117: 300000
B118: 201.13075.1 | C118: Fognatura Nera Valbasca | D118: Sì | E118: C1 | F118: C1.1 | G118: 0 | H118: 92 | I118: rilevata | J118: Como | K118: NO | L118: Progetto definitivo | M118: 2016 | N118: - | O118: - | P118: - | Q118: - | R118: - | S118: - | T118: - | AC118: 20457.63 | AD118: 163220.34 | AE118: 0 | AF118: 0 | AG118: 0 | AH118: 0 | AI118: 0 | AJ118: 0 | AK118: 20457.63 | AL118: 163220.34
B119: 201.13075.2 | C119: Fognatura nera via Silva (FG01307526) | D119: Sì | E119: C1 | F119: C1.1 | G119: 0 | H119: 28 | I119: rilevata | J119: Como | K119: NO | M119: 2016 | N119: - | O119: - | P119: - | Q119: - | R119: - | S119: - | T119: - | AC119: 100000 | AD119: 0 | AE119: 0 | AF119: 0 | AG119: 0 | AH119: 0 | AI119: 0 | AJ119: 0 | AK119: 100000 | AL119: 0
B120: 202.13075.1 | C120: Fognatura S.Agostino | D120: Sì | E120: C2 | F120: C2.1 | G120: 0 | J120: Como | K120: SI | L120: Progetto esecutivo | M120: 2016 | N120: - | O120: - | P120: - | Q120: - | R120: - | S120: - | T120: - | AC120: 0 | AD120: 416842.28 | AE120: 0 | AF120: 0 | AG120: 0 | AH120: 0 | AI120: 0 | AJ120: 0 | AK120: 0 | AL120: 416842.28
B121: 202.13075.2 | C121: Manutenzione straordinaria F.N. - Via Vittorio Emanuele II (Vicolo) | D121: Sì | E121: C2 | F121: C2.1 | G121: 0 | J121: Como | K121: NO | M121: 2016 | N121: - | O121: - | P121: - | Q121: - | R121: - | S121: - | T121: - | AC121: 50000 | AD121: 0 | AE121: 0 | AF121: 0 | AG121: 0 | AH121: 0 | AI121: 0 | AJ121: 0 | AK121: 50000 | AL121: 0
B122: 203.13075.1 | C122: Como_RETI FOGNARIE - Mappatura / Ricerche perdite / Studi - Agglomerato 1 | D122: Sì | E122: K1 | F122: K1.1 | G122: 476635 | J122: Como | K122: NO | M122: 2016 | N122: - | O122: - | P122: 100 | Q122: - | R122: - | S122: - | T122: - | AC122: 702.98 | AD122: 0 | AE122: 0 | AF122: 0 | AG122: 0 | AH122: 0 | AI122: 0 | AJ122: 0 | AK122: 702.98 | AL122: 0
B123: 203.13075.2 | C123: Como_RETI FOGNARIE - Mappatura / Ricerche perdite / Studi - Agglomerato 2 | D123: Sì | E123: K1 | F123: K1.1 | G123: 476635 | J123: Como | K123: NO | M123: 2016 | N123: - | O123: - | P123: 100 | Q123: - | R123: - | S123: - | T123: - | AC123: 8347.95 | AD123: 0 | AE123: 0 | AF123: 0 | AG123: 0 | AH123: 0 | AI123: 0 | AJ123: 0 | AK123: =SUM(AC123+AE123+AG123+AI123) -> 8347.95 | AL123: =SUM(AD123+AF123+AH123+AJ123) -> 0
B124: 203.13075.3 | C124: Como_RETI FOGNARIE - Mappatura / Ricerche perdite / Studi - Agglomerato 3 | D124: Sì | E124: K1 | F124: K1.1 | G124: 476635 | J124: Como | K124: NO | M124: 2016 | N124: - | O124: - | P124: 100 | Q124: - | R124: - | S124: - | T124: - | AC124: 699.08 | AD124: 0 | AE124: 0 | AF124: 0 | AG124: 0 | AH124: 0 | AI124: 0 | AJ124: 0 | AK124: 699.08 | AL124: 0
B125: 207.13075.1 | C125: Manutenzione straordinaria stazioni di sollevamento e dissabbiatori - intervento 1 | D125: No | E125: C2 | F125: C2.3 | G125: 4659 | J125: Como | K125: NO | M125: 2016 | N125: - | O125: - | P125: - | Q125: - | R125: - | S125: - | T125: - | AC125: 100000 | AD125: 0 | AE125: 0 | AF125: 0 | AG125: 0 | AH125: 0 | AI125: 0 | AJ125: 0 | AK125: 100000 | AL125: 0
B126: 101.13077.1 | C126: MANUTENZIONE STRAORDINARIA ACQUEDOTTO E FOGNATURA LOCALITA' MONTI DI CROCC E SORGENTE VALLE MOTTER | D126: No | E126: A1 | F126: A1.4 | G126: 633 | J126: Corrido | K126: NO | L126: Progetto esecutivo | M126: 2016 | N126: - | O126: - | P126: - | Q126: - | R126: - | S126: - | T126: - | AC126: 50000 | AD126: 0 | AE126: 0 | AF126: 0 | AG126: 0 | AH126: 0 | AI126: 0 | AJ126: 0 | AK126: 50000 | AL126: 0
B127: 107.13077.1 | C127: Corrido_RICERCA PERDITE / MAPPATURA RETE / STUDI | D127: Sì | E127: K1 | F127: K1.1 | G127: 508066 | J127: Corrido | K127: N.A. | M127: 2016 | N127: - | O127: - | P127: 100 | Q127: - | R127: - | S127: - | T127: - | AC127: 9750 | AD127: 0 | AE127: 0 | AF127: 0 | AG127: 0 | AH127: 0 | AI127: 0 | AJ127: 0 | AK127: 9750 | AL127: 0
B128: 203.13083.1 | C128: Cremia_RETI FOGNARIE - Mappatura / Ricerche perdite / Studi (prioritario con attivazione immediata) | D128: Sì | E128: K1 | F128: K1.1 | G128: 476635 | J128: Cremia | K128: NO | M128: 2016 | N128: - | O128: - | P128: 100 | Q128: - | R128: - | S128: - | T128: - | AC128: 9750 | AD128: 0 | AE128: 0 | AF128: 0 | AG128: 0 | AH128: 0 | AI128: 0 | AJ128: 0 | AK128: 9750 | AL128: 0
B129: 107.13084.1 | C129: Mappatura rete idrica piano di ricerca perdite | D129: Sì | E129: K1 | F129: K1.1 | G129: 508066 | J129: Cucciago | K129: N.A. | L129: Studio di fattibilità | M129: 2016 | N129: - | O129: - | P129: 100 | Q129: - | R129: - | S129: - | T129: - | AC129: 15600 | AD129: 0 | AE129: 0 | AF129: 0 | AG129: 0 | AH129: 0 | AI129: 0 | AJ129: 0 | AK129: 15600 | AL129: 0
B130: 107.13085.1 | C130: Cusino_RICERCA PERDITE / MAPPATURA RETE / STUDI | D130: Sì | E130: K1 | F130: K1.1 | G130: 508066 | J130: Cusino | K130: N.A. | M130: 2016 | N130: - | O130: - | P130: 100 | Q130: - | R130: - | S130: - | T130: - | AC130: 9750 | AD130: 0 | AE130: 0 | AF130: 0 | AG130: 0 | AH130: 0 | AI130: 0 | AJ130: 0 | AK130: 9750 | AL130: 0
B131: 203.13087.1 | C131: Dizzasco_RETI FOGNARIE - Mappatura / Ricerche perdite / Studi | D131: Sì | E131: K1 | F131: K1.1 | G131: 476635 | J131: Dizzasco | K131: NO | M131: 2016 | N131: - | O131: - | P131: 100 | Q131: - | R131: - | S131: - | T131: - | AC131: 9750 | AD131: 0 | AE131: 0 | AF131: 0 | AG131: 0 | AH131: 0 | AI131: 0 | AJ131: 0 | AK131: 9750 | AL131: 0
B132: 107.13089.1 | C132: Domaso_RICERCA PERDITE / MAPPATURA RETE / STUDI | D132: Sì | E132: K1 | F132: K1.1 | G132: 508066 | J132: Domaso | K132: N.A. | M132: 2016 | N132: - | O132: - | P132: 100 | Q132: - | R132: - | S132: - | T132: - | AC132: 9750 | AD132: 0 | AE132: 0 | AF132: 0 | AG132: 0 | AH132: 0 | AI132: 0 | AJ132: 0 | AK132: 9750 | AL132: 0
B133: 107.13090.1 | C133: Dongo_RICERCA PERDITE / MAPPATURA RETE / STUDI | D133: Sì | E133: K1 | F133: K1.1 | G133: 508066 | J133: Dongo | K133: N.A. | M133: 2016 | N133: - | O133: - | P133: 100 | Q133: - | R133: - | S133: - | T133: - | AC133: 9750 | AD133: 0 | AE133: 0 | AF133: 0 | AG133: 0 | AH133: 0 | AI133: 0 | AJ133: 0 | AK133: 9750 | AL133: 0
B134: 201.13090.1 | C134: LAVORI DI COSTRUZIONE FOGNATURA IN LOCALITA' LIDO | D134: No | E134: C1 | F134: C1.1 | G134: 0 | J134: Dongo | K134: NO | L134: Progetto preliminare | M134: 2016 | N134: - | O134: - | P134: - | Q134: - | R134: - | S134: - | T134: - | AC134: 127000 | AD134: 0 | AE134: 0 | AF134: 0 | AG134: 0 | AH134: 0 | AI134: 0 | AJ134: 0 | AK134: 127000 | AL134: 0
B135: 203.13090.1 | C135: Dongo_RETI FOGNARIE - Mappatura / Ricerche perdite / Studi | D135: Sì | E135: K1 | F135: K1.1 | G135: 476635 | J135: Dongo | K135: NO | M135: 2016 | N135: - | O135: - | P135: 100 | Q135: - | R135: - | S135: - | T135: - | AC135: 9750 | AD135: 0 | AE135: 0 | AF135: 0 | AG135: 0 | AH135: 0 | AI135: 0 | AJ135: 0 | AK135: 9750 | AL135: 0
B136: 107.13092.1 | C136: Dosso del Liro_RICERCA PERDITE / MAPPATURA RETE / STUDI | D136: Sì | E136: K1 | F136: K1.1 | G136: 508066 | J136: Dosso del Liro | K136: N.A. | M136: 2016 | N136: - | O136: - | P136: 100 | Q136: - | R136: - | S136: - | T136: - | AC136: 9750 | AD136: 0 | AE136: 0 | AF136: 0 | AG136: 0 | AH136: 0 | AI136: 0 | AJ136: 0 | AK136: 9750 | AL136: 0
B137: 203.13092.1 | C137: Dosso del Liro_RETI FOGNARIE - Mappatura / Ricerche perdite / Studi (prioritario con attivazione immediata) | D137: Sì | E137: K1 | F137: K1.1 | G137: 476635 | J137: Dosso del Liro | K137: NO | M137: 2016 | N137: - | O137: - | P137: 100 | Q137: - | R137: - | S137: - | T137: - | AC137: 9750 | AD137: 0 | AE137: 0 | AF137: 0 | AG137: 0 | AH137: 0 | AI137: 0 | AJ137: 0 | AK137: 9750 | AL137: 0
B138: 100.13095.1 | C138: Allacciamenti alla rete acquedottistica | D138: No | E138: - | F138: - | G138: 0 | J138: Erba | K138: NO | M138: 2016 | N138: - | O138: - | P138: - | Q138: - | R138: - | S138: - | T138: - | AC138: 0 | AD138: 150400 | AE138: 0 | AF138: 0 | AG138: 0 | AH138: 0 | AI138: 0 | AJ138: 0 | AK138: 0 | AL138: 150400
B139: 101.13095.1 | C139: Campo pozzi Segrino | D139: No | E139: A1 | F139: A1.4 | G139: 633 | J139: Longone al Segrino | K139: NO | L139: Progetto preliminare | M139: 2016 | N139: - | O139: - | P139: - | Q139: - | R139: - | S139: - | T139: - | AC139: 27150 | AD139: 0 | AE139: 0 | AF139: 0 | AG139: 0 | AH139: 0 | AI139: 0 | AJ139: 0 | AK139: 27150 | AL139: 0
B140: 105.13095.1 | C140: SERBATOIO ALPE DE VICERE' installazione nuovo impianto automatico disinfezione acqua con ipoclorito di sodio (in siostituzione di quello esistente vetusto). | D140: No | E140: P2 | F140: P2.1 | G140: 0 | J140: Erba | K140: N.A. | L140: Progetto esecutivo | M140: 2016 | N140: - | O140: - | P140: 100% giudizi almeno DISCRETO | Q140: - | R140: - | S140: - | T140: - | AC140: 5000 | AD140: 0 | AE140: 0 | AF140: 0 | AG140: 0 | AH140: 0 | AI140: 0 | AJ140: 0 | AK140: 5000 | AL140: 0
B141: 105.13095.2 | C141: Impianto disinfezione serbatoio Boccogna | D141: Sì | E141: P2 | F141: P2.1 | G141: 0 | J141: Erba | K141: NO | L141: Progetto preliminare | M141: 2016 | N141: - | O141: - | P141: 100% giudizi almeno DISCRETO | Q141: - | R141: - | S141: - | T141: - | AC141: 19910 | AD141: 0 | AE141: 0 | AF141: 0 | AG141: 0 | AH141: 0 | AI141: 0 | AJ141: 0 | AK141: 19910 | AL141: 0
B142: 108.13095.1 | C142: Telecontrollo (ammodernamento generale) | D142: Sì | E142: K3 | F142: K3.1 | G142: 0 | J142: Erba | K142: N.A. | L142: Progetto preliminare | M142: 2016 | N142: - | O142: - | P142: - | Q142: - | R142: - | S142: - | T142: - | AC142: 49775 | AD142: 0 | AE142: 0 | AF142: 0 | AG142: 0 | AH142: 0 | AI142: 0 | AJ142: 0 | AK142: 49775 | AL142: 0
B143: 302.13095.1 | C143: Ampliamento stazione di sollevamento acque reflue di via per Alserio - costruzione nuova condotta di mandata | D143: Sì | E143: C2 | F143: C2.1 | G143: 0 | J143: Erba | K143: NO | L143: Progetto esecutivo | M143: 2016 | N143: - | O143: - | P143: - | Q143: - | R143: - | S143: - | T143: - | AC143: 418082.6 | AD143: 338964.59 | AE143: 0 | AF143: 0 | AG143: 0 | AH143: 0 | AI143: 0 | AJ143: 0 | AK143: 418082.6 | AL143: 338964.59
B144: 200.13095.1 | C144: Allacciamenti alla rete fognaria | D144: No | E144: - | F144: - | G144: 0 | J144: Erba | K144: NO | M144: 2016 | N144: - | O144: - | P144: - | Q144: - | R144: - | S144: - | T144: - | AC144: 0 | AD144: 221840 | AE144: 0 | AF144: 0 | AG144: 0 | AH144: 0 | AI144: 0 | AJ144: 0 | AK144: 0 | AL144: 221840
B145: 201.13095.1 | C145: Completamento rete fognaria nelle porzioni di agglomerato definite "Zone servibili" | D145: Sì | E145: C1 | F145: C1.1 | G145: 0 | J145: Erba | L145: Progetto esecutivo | M145: 2016 | N145: - | O145: - | P145: - | Q145: - | R145: - | S145: - | T145: - | AC145: 340000 | AD145: 500000 | AE145: 0 | AF145: 0 | AG145: 0 | AH145: 0 | AI145: 0 | AJ145: 0 | AK145: 340000 | AL145: 500000
B146: 203.13097.1 | C146: Eupilio_RETI FOGNARIE - Mappatura / Ricerche perdite / Studi (prioritario con attivazione immediata) | D146: Sì | E146: K1 | F146: K1.1 | G146: 476635 | J146: Eupilio | K146: NO | M146: 2016 | N146: - | O146: - | P146: 100 | Q146: - | R146: - | S146: - | T146: - | AC146: 9750 | AD146: 0 | AE146: 0 | AF146: 0 | AG146: 0 | AH146: 0 | AI146: 0 | AJ146: 0 | AK146: 9750 | AL146: 0
B147: 107.13099.1 | C147: Faloppio_RICERCA PERDITE / MAPPATURA RETE / STUDI (ulteriore int. pianificati non prioritari) | D147: Sì | E147: K1 | F147: K1.1 | G147: 508066 | J147: Faloppio | K147: N.A. | M147: 2016 | N147: - | O147: - | P147: 100 | Q147: - | R147: - | S147: - | T147: - | AC147: 9750 | AD147: 0 | AE147: 0 | AF147: 0 | AG147: 0 | AH147: 0 | AI147: 0 | AJ147: 0 | AK147: 9750 | AL147: 0
B148: 302.13099.1 | C148: Rifacimento collettore sovracomunale "Faloppia" - 1° lotto | D148: Sì | E148: C2 | F148: C2.1 | G148: 0 | J148: Faloppio | K148: NO | L148: Progetto preliminare | M148: 2016 | N148: - | O148: - | P148: - | Q148: - | R148: - | S148: - | T148: - | AC148: 100025 | AD148: 284625 | AE148: 0 | AF148: 0 | AG148: 0 | AH148: 0 | AI148: 0 | AJ148: 0 | AK148: 100025 | AL148: 284625
B149: 203.13099.1 | C149: Faloppio_RETI FOGNARIE - Mappatura / Ricerche perdite / Studi (prioritario con attivazione immediata) | D149: Sì | E149: K1 | F149: K1.1 | G149: 476635 | J149: Faloppio | K149: NO | M149: 2016 | N149: - | O149: - | P149: 100 | Q149: - | R149: - | S149: - | T149: - | AC149: 9750 | AD149: 0 | AE149: 0 | AF149: 0 | AG149: 0 | AH149: 0 | AI149: 0 | AJ149: 0 | AK149: 9750 | AL149: 0
B150: 107.13100.1 | C150: Fenegrò_RICERCA PERDITE / MAPPATURA RETE / STUDI | D150: Sì | E150: K1 | F150: K1.1 | G150: 508066 | J150: Fenegrò | K150: N.A. | M150: 2016 | N150: - | O150: - | P150: 100 | Q150: - | R150: - | S150: - | T150: - | AC150: 9750 | AD150: 0 | AE150: 0 | AF150: 0 | AG150: 0 | AH150: 0 | AI150: 0 | AJ150: 0 | AK150: 9750 | AL150: 0
B151: 203.13100.1 | C151: Fenegrò_RETI FOGNARIE - Mappatura / Ricerche perdite / Studi (prioritario con attivazione immediata) | D151: Sì | E151: K1 | F151: K1.1 | G151: 476635 | J151: Fenegrò | K151: NO | M151: 2016 | N151: - | O151: - | P151: 100 | Q151: - | R151: - | S151: - | T151: - | AC151: 9750 | AD151: 0 | AE151: 0 | AF151: 0 | AG151: 0 | AH151: 0 | AI151: 0 | AJ151: 0 | AK151: 9750 | AL151: 0
B152: 107.13102.1 | C152: Adeguamento mappatura rete idrica piano di ricerca perdite | D152: Sì | E152: K1 | F152: K1.1 | G152: 508066 | J152: Fino Mornasco | K152: N.A. | L152: Studio di fattibilità | M152: 2016 | N152: - | O152: - | P152: 100 | Q152: - | R152: - | S152: - | T152: - | AC152: 23400 | AD152: 0 | AE152: 0 | AF152: 0 | AG152: 0 | AH152: 0 | AI152: 0 | AJ152: 0 | AK152: 23400 | AL152: 0
B153: 111.13102.1 | C153: Adeguamento serbatoio Gervasio | D153: No | E153: B8 | F153: B8.1 | G153: 0 | J153: Fino Mornasco | K153: NO | L153: Studio di fattibilità | M153: 2016 | N153: - | O153: - | P153: - | Q153: - | R153: - | S153: - | T153: - | AC153: 135750 | AD153: 0 | AE153: 0 | AF153: 0 | AG153: 0 | AH153: 0 | AI153: 0 | AJ153: 0 | AK153: 135750 | AL153: 0
B154: 403.13102.1 | C154: Stazione di stoccaggio e dosaggio decolorante | D154: No | E154: D2 | F154: D2.9 | G154: 0 | J154: Fino Mornasco | K154: NO | M154: 2016 | N154: - | O154: - | P154: 100% giudizi Conformi / Regolamentari | Q154: - | R154: - | S154: - | T154: - | AC154: 35000 | AD154: 0 | AE154: 0 | AF154: 0 | AG154: 0 | AH154: 0 | AI154: 0 | AJ154: 0 | AK154: 35000 | AL154: 0
B155: 403.13102.1 | C155: Stazione di stoccaggio e dosaggio decolorante | D155: No | E155: D2 | F155: D2.9 | G155: 0 | J155: Fino Mornasco | K155: NO | M155: 2016 | N155: - | O155: - | P155: 100% giudizi Conformi / Regolamentari | Q155: - | R155: - | S155: - | T155: - | AC155: 16000 | AD155: 0 | AE155: 0 | AF155: 0 | AG155: 0 | AH155: 0 | AI155: 0 | AJ155: 0 | AK155: 16000 | AL155: 0
B156: 403.13102.1 | C156: Manutenzione straordinaria sezione ozono | D156: No | E156: D2 | F156: D2.9 | G156: 0 | J156: Fino Mornasco | K156: NO | M156: 2016 | N156: - | O156: - | P156: 100% giudizi Conformi / Regolamentari | Q156: - | R156: - | S156: - | T156: - | AC156: 40000 | AD156: 0 | AE156: 0 | AF156: 0 | AG156: 0 | AH156: 0 | AI156: 0 | AJ156: 0 | AK156: 40000 | AL156: 0
B157: 202.13102.1 | C157: Rifacimento tratto rete fognatura via Dolomiti | D157: Sì | E157: C2 | F157: C2.1 | G157: 0 | J157: Fino Mornasco | K157: NO | L157: Studio di fattibilità | M157: 2016 | N157: - | O157: - | P157: - | Q157: - | R157: - | S157: - | T157: - | AC157: 80000 | AD157: 0 | AE157: 0 | AF157: 0 | AG157: 0 | AH157: 0 | AI157: 0 | AJ157: 0 | AK157: 80000 | AL157: 0
B158: 107.13106.1 | C158: Garzeno_RICERCA PERDITE / MAPPATURA RETE / STUDI | D158: Sì | E158: K1 | F158: K1.1 | G158: 508066 | J158: Garzeno | K158: N.A. | M158: 2016 | N158: - | O158: - | P158: 100 | Q158: - | R158: - | S158: - | T158: - | AC158: 9750 | AD158: 0 | AE158: 0 | AF158: 0 | AG158: 0 | AH158: 0 | AI158: 0 | AJ158: 0 | AK158: 9750 | AL158: 0
B159: 105.13110.1 | C159: Intervento urgente di manutenzione straordinaria dell'impianto di potabilizzazione per la rimozione delle molecole LM6 e MEBIKAR | D159: No | E159: P2 | F159: P2.1 | G159: 0 | J159: Grandate | K159: NO | L159: Studio di fattibilità | M159: 2016 | N159: - | O159: - | P159: 100% giudizi almeno DISCRETO | Q159: - | R159: - | S159: - | T159: - | AC159: 46680 | AD159: 0 | AE159: 0 | AF159: 0 | AG159: 0 | AH159: 0 | AI159: 0 | AJ159: 0 | AK159: 46680 | AL159: 0
B160: 107.13110.1 | C160: Grandate_RICERCA PERDITE / MAPPATURA RETE / STUDI | D160: Sì | E160: K1 | F160: K1.1 | G160: 508066 | J160: Grandate | K160: N.A. | M160: 2016 | N160: - | O160: - | P160: 100 | Q160: - | R160: - | S160: - | T160: - | AC160: 9750 | AD160: 0 | AE160: 0 | AF160: 0 | AG160: 0 | AH160: 0 | AI160: 0 | AJ160: 0 | AK160: 9750 | AL160: 0
B161: 107.13111.1 | C161: Grandola ed Uniti_RICERCA PERDITE / MAPPATURA RETE / STUDI | D161: Sì | E161: K1 | F161: K1.1 | G161: 508066 | J161: Grandola ed Uniti | K161: N.A. | M161: 2016 | N161: - | O161: - | P161: 100 | Q161: - | R161: - | S161: - | T161: - | AC161: 9750 | AD161: 0 | AE161: 0 | AF161: 0 | AG161: 0 | AH161: 0 | AI161: 0 | AJ161: 0 | AK161: 9750 | AL161: 0
B162: 203.13111.1 | C162: Grandola ed Uniti_RETI FOGNARIE - Mappatura / Ricerche perdite / Studi (prioritario con attivazione immediata) | D162: Sì | E162: K1 | F162: K1.1 | G162: 476635 | J162: Grandola ed Uniti | K162: NO | M162: 2016 | N162: - | O162: - | P162: 100 | Q162: - | R162: - | S162: - | T162: - | AC162: 9750 | AD162: 0 | AE162: 0 | AF162: 0 | AG162: 0 | AH162: 0 | AI162: 0 | AJ162: 0 | AK162: 9750 | AL162: 0
B163: 107.13249.1 | C163: Gravedona ed Uniti_RICERCA PERDITE / MAPPATURA RETE / STUDI | D163: Sì | E163: K1 | F163: K1.1 | G163: 508066 | J163: Gravedona ed Uniti | K163: N.A. | M163: 2016 | N163: - | O163: - | P163: 100 | Q163: - | R163: - | S163: - | T163: - | AC163: 9750 | AD163: 0 | AE163: 0 | AF163: 0 | AG163: 0 | AH163: 0 | AI163: 0 | AJ163: 0 | AK163: 9750 | AL163: 0
B164: 203.13249.1 | C164: Gravedona ed Uniti_RETI FOGNARIE - Mappatura / Ricerche perdite / Studi | D164: Sì | E164: K1 | F164: K1.1 | G164: 476635 | J164: Gravedona ed Uniti | K164: NO | M164: 2016 | N164: - | O164: - | P164: 100 | Q164: - | R164: - | S164: - | T164: - | AC164: 9750 | AD164: 0 | AE164: 0 | AF164: 0 | AG164: 0 | AH164: 0 | AI164: 0 | AJ164: 0 | AK164: 9750 | AL164: 0
B165: 203.13113.1 | C165: Griante_RETI FOGNARIE - Mappatura / Ricerche perdite / Studi (prioritario con attivazione immediata) | D165: Sì | E165: K1 | F165: K1.1 | G165: 476635 | J165: Griante | K165: NO | M165: 2016 | N165: - | O165: - | P165: 100 | Q165: - | R165: - | S165: - | T165: - | AC165: 9750 | AD165: 0 | AE165: 0 | AF165: 0 | AG165: 0 | AH165: 0 | AI165: 0 | AJ165: 0 | AK165: 9750 | AL165: 0
B166: 203.13114.1 | C166: Guanzate_RETI FOGNARIE - Mappatura / Ricerche perdite / Studi | D166: Sì | E166: K1 | F166: K1.1 | G166: 476635 | J166: Guanzate | K166: NO | M166: 2016 | N166: - | O166: - | P166: 100 | Q166: - | R166: - | S166: - | T166: - | AC166: 9750 | AD166: 0 | AE166: 0 | AF166: 0 | AG166: 0 | AH166: 0 | AI166: 0 | AJ166: 0 | AK166: 9750 | AL166: 0
B167: 110.13118.1 | C167: Rifacimento rete acquedotto via Trieste | D167: Sì | E167: B4 | F167: B4.1 | G167: 10044 | J167: Inverigo | K167: NO | M167: 2016 | N167: - | O167: - | P167: - | Q167: - | R167: - | S167: - | T167: - | AC167: 11775 | AD167: 0 | AE167: 0 | AF167: 0 | AG167: 0 | AH167: 0 | AI167: 0 | AJ167: 0 | AK167: 11775 | AL167: 0
B168: 107.13118.1 | C168: Inverigo_RICERCA PERDITE / MAPPATURA RETE / STUDI | D168: Sì | E168: K1 | F168: K1.1 | G168: 508066 | J168: Inverigo | K168: N.A. | M168: 2016 | N168: - | O168: - | P168: 100 | Q168: - | R168: - | S168: - | T168: - | AC168: 9750 | AD168: 0 | AE168: 0 | AF168: 0 | AG168: 0 | AH168: 0 | AI168: 0 | AJ168: 0 | AK168: 9750 | AL168: 0
B169: 200.13118.1 | C169: Allacciamenti alla rete fognaria | D169: No | E169: - | F169: - | G169: 0 | J169: Inverigo | K169: NO | M169: 2016 | N169: - | O169: - | P169: - | Q169: - | R169: - | S169: - | T169: - | AC169: 0 | AD169: 28320 | AE169: 0 | AF169: 0 | AG169: 0 | AH169: 0 | AI169: 0 | AJ169: 0 | AK169: 0 | AL169: 28320
B170: 201.13118.1 | C170: FOGNATURA fraz. CREMNAGO VIA PRIVATA PEREGO (attuazione edificazione residenziale privata) | D170: Sì | E170: C1 | F170: C1.1 | G170: 0 | H170: 30 | I170: rilevata | J170: Inverigo | K170: NO | L170: Studio di fattibilità | M170: 2016 | N170: - | O170: - | P170: - | Q170: - | R170: - | S170: - | T170: - | AC170: 60000 | AD170: 0 | AE170: 0 | AF170: 0 | AG170: 0 | AH170: 0 | AI170: 0 | AJ170: 0 | AK170: 60000 | AL170: 0
B171: 201.13118.3 | C171: FOGNATURA VIA MONTEBARRO-VIA MAGNI ALTA (3° LOTTO) | D171: Sì | E171: C1 | F171: C1.1 | G171: 0 | H171: 130 | I171: rilevata | J171: Inverigo | K171: NO | L171: Progetto definitivo | M171: 2016 | N171: - | O171: - | P171: - | Q171: - | R171: - | S171: - | T171: - | AC171: 516000 | AD171: 0 | AE171: 0 | AF171: 0 | AG171: 0 | AH171: 0 | AI171: 0 | AJ171: 0 | AK171: 516000 | AL171: 0
B172: 201.13118.3 | C172: FOGNATURA VIA TRENTO | D172: Sì | E172: C1 | F172: C1.1 | G172: 0 | H172: 35 | I172: rilevata | J172: Inverigo | K172: NO | L172: Progetto definitivo | M172: 2016 | N172: - | O172: - | P172: - | Q172: - | R172: - | S172: - | T172: - | AC172: 60000 | AD172: 0 | AE172: 0 | AF172: 0 | AG172: 0 | AH172: 0 | AI172: 0 | AJ172: 0 | AK172: 60000 | AL172: 0
B173: 203.13118.1 | C173: Inverigo_RETI FOGNARIE - Mappatura / Ricerche perdite / Studi - Agglomerato 1 | D173: Sì | E173: K1 | F173: K1.1 | G173: 476635 | J173: Inverigo | K173: NO | M173: 2016 | N173: - | O173: - | P173: 100 | Q173: - | R173: - | S173: - | T173: - | AC173: 2364.38 | AD173: 0 | AE173: 0 | AF173: 0 | AG173: 0 | AH173: 0 | AI173: 0 | AJ173: 0 | AK173: 2364.38 | AL173: 0
B174: 203.13118.2 | C174: Inverigo_RETI FOGNARIE - Mappatura / Ricerche perdite / Studi - Agglomerato 2 | D174: Sì | E174: K1 | F174: K1.1 | G174: 476635 | J174: Inverigo | K174: NO | M174: 2016 | N174: - | O174: - | P174: 100 | Q174: - | R174: - | S174: - | T174: - | AC174: 748.8 | AD174: 0 | AE174: 0 | AF174: 0 | AG174: 0 | AH174: 0 | AI174: 0 | AJ174: 0 | AK174: 748.8 | AL174: 0
B175: 203.13118.3 | C175: Inverigo_RETI FOGNARIE - Mappatura / Ricerche perdite / Studi - Agglomerato 3 | D175: Sì | E175: K1 | F175: K1.1 | G175: 476635 | J175: Inverigo | K175: NO | M175: 2016 | N175: - | O175: - | P175: 100 | Q175: - | R175: - | S175: - | T175: - | AC175: 6636.83 | AD175: 0 | AE175: 0 | AF175: 0 | AG175: 0 | AH175: 0 | AI175: 0 | AJ175: 0 | AK175: 6636.83 | AL175: 0
B176: 203.13119.1 | C176: Laglio_RETI FOGNARIE - Mappatura / Ricerche perdite / Studi | D176: Sì | E176: K1 | F176: K1.1 | G176: 476635 | J176: Laglio | K176: NO | M176: 2016 | N176: - | O176: - | P176: 100 | Q176: - | R176: - | S176: - | T176: - | AC176: 9750 | AD176: 0 | AE176: 0 | AF176: 0 | AG176: 0 | AH176: 0 | AI176: 0 | AJ176: 0 | AK176: 9750 | AL176: 0
B177: 203.13120.1 | C177: Laino_RETI FOGNARIE - Mappatura / Ricerche perdite / Studi (prioritario con attivazione immediata) | D177: Sì | E177: K1 | F177: K1.1 | G177: 476635 | J177: Laino | K177: NO | M177: 2016 | N177: - | O177: - | P177: 100 | Q177: - | R177: - | S177: - | T177: - | AC177: 9750 | AD177: 0 | AE177: 0 | AF177: 0 | AG177: 0 | AH177: 0 | AI177: 0 | AJ177: 0 | AK177: 9750 | AL177: 0
B178: 107.13121.1 | C178: Lambrugo_RICERCA PERDITE / MAPPATURA RETE / STUDI | D178: Sì | E178: K1 | F178: K1.1 | G178: 508066 | J178: Lambrugo | K178: N.A. | M178: 2016 | N178: - | O178: - | P178: 100 | Q178: - | R178: - | S178: - | T178: - | AC178: 9750 | AD178: 0 | AE178: 0 | AF178: 0 | AG178: 0 | AH178: 0 | AI178: 0 | AJ178: 0 | AK178: 9750 | AL178: 0
B179: 111.13121.1 | C179: Messa in sicurezza degli impianti di sollevamento e accumulo esistenti | D179: No | E179: B8 | F179: B8.1 | G179: 0 | J179: Lambrugo | K179: N.A. | L179: Progetto esecutivo | M179: 2016 | N179: - | O179: - | P179: - | Q179: - | R179: - | S179: - | T179: - | AC179: 5994.33 | AD179: 0 | AE179: 0 | AF179: 0 | AG179: 0 | AH179: 0 | AI179: 0 | AJ179: 0 | AK179: 5994.33 | AL179: 0
B180: 201.13122.2 | C180: Rete fognaria Belvedere parte terminale di viale Poletti | D180: Sì | E180: C1 | F180: C1.1 | G180: 0 | H180: 75 | I180: rilevata | J180: Lanzo d'Intelvi | L180: Progetto esecutivo | M180: 2016 | N180: - | O180: - | P180: - | Q180: - | R180: - | S180: - | T180: - | AC180: 0 | AD180: 120000 | AE180: 0 | AF180: 0 | AG180: 0 | AH180: 0 | AI180: 0 | AJ180: 0 | AK180: 0 | AL180: 120000
B181: 107.13123.1 | C181: Lasnigo_RICERCA PERDITE / MAPPATURA RETE / STUDI | D181: Sì | E181: K1 | F181: K1.1 | G181: 508066 | J181: Lasnigo | K181: N.A. | M181: 2016 | N181: - | O181: - | P181: 100 | Q181: - | R181: - | S181: - | T181: - | AC181: 9750 | AD181: 0 | AE181: 0 | AF181: 0 | AG181: 0 | AH181: 0 | AI181: 0 | AJ181: 0 | AK181: 9750 | AL181: 0
B182: 301.13123.1 | C182: Opere di consolidamento idraulico e difesa idraulica a presidio del collettore consortile | D182: No | E182: C2 | F182: C2.8 | G182: 178757 | J182: Lasnigo | K182: NO | L182: Progetto esecutivo | M182: 2016 | N182: - | O182: - | P182: - | Q182: - | R182: - | S182: - | T182: - | AC182: 7204.04 | AD182: 43455.7 | AE182: 0 | AF182: 0 | AG182: 0 | AH182: 0 | AI182: 0 | AJ182: 0 | AK182: 7204.04 | AL182: 43455.7
B183: 203.13123.1 | C183: Lasnigo_RETI FOGNARIE - Mappatura / Ricerche perdite / Studi | D183: Sì | E183: K1 | F183: K1.1 | G183: 476635 | J183: Lasnigo | K183: NO | M183: 2016 | N183: - | O183: - | P183: 100 | Q183: - | R183: - | S183: - | T183: - | AC183: 9750 | AD183: 0 | AE183: 0 | AF183: 0 | AG183: 0 | AH183: 0 | AI183: 0 | AJ183: 0 | AK183: 9750 | AL183: 0
B184: 100.13128.1 | C184: Allacciamenti alla rete acquedottistica | D184: No | E184: - | F184: - | G184: 0 | J184: Limido Comasco | K184: NO | M184: 2016 | N184: - | O184: - | P184: - | Q184: - | R184: - | S184: - | T184: - | AC184: 0 | AD184: 8000 | AE184: 0 | AF184: 0 | AG184: 0 | AH184: 0 | AI184: 0 | AJ184: 0 | AK184: 0 | AL184: 8000
B185: 107.13128.1 | C185: Limido Comasco_RICERCA PERDITE / MAPPATURA RETE / STUDI | D185: Sì | E185: K1 | F185: K1.1 | G185: 508066 | J185: Limido Comasco | K185: N.A. | M185: 2016 | N185: - | O185: - | P185: 100 | Q185: - | R185: - | S185: - | T185: - | AC185: 9750 | AD185: 0 | AE185: 0 | AF185: 0 | AG185: 0 | AH185: 0 | AI185: 0 | AJ185: 0 | AK185: 9750 | AL185: 0
B186: 200.13128.1 | C186: Allacciamenti alla rete fognaria | D186: No | E186: - | F186: - | G186: 0 | J186: Limido Comasco | K186: NO | M186: 2016 | N186: - | O186: - | P186: - | Q186: - | R186: - | S186: - | T186: - | AC186: 0 | AD186: 11800 | AE186: 0 | AF186: 0 | AG186: 0 | AH186: 0 | AI186: 0 | AJ186: 0 | AK186: 0 | AL186: 11800
B187: 107.13129.1 | C187: Lipomo_RICERCA PERDITE / MAPPATURA RETE / STUDI | D187: Sì | E187: K1 | F187: K1.1 | G187: 508066 | J187: Lipomo | K187: N.A. | M187: 2016 | N187: - | O187: - | P187: 100 | Q187: - | R187: - | S187: - | T187: - | AC187: 9750 | AD187: 0 | AE187: 0 | AF187: 0 | AG187: 0 | AH187: 0 | AI187: 0 | AJ187: 0 | AK187: =SUM(AC187+AE187+AG187+AI187) -> 9750 | AL187: =SUM(AD187+AF187+AH187+AJ187) -> 0
B188: 107.13130.1 | C188: Livo_RICERCA PERDITE / MAPPATURA RETE / STUDI | D188: Sì | E188: K1 | F188: K1.1 | G188: 508066 | J188: Livo | K188: N.A. | M188: 2016 | N188: - | O188: - | P188: 100 | Q188: - | R188: - | S188: - | T188: - | AC188: 9750 | AD188: 0 | AE188: 0 | AF188: 0 | AG188: 0 | AH188: 0 | AI188: 0 | AJ188: 0 | AK188: 9750 | AL188: 0
B189: 203.13130.1 | C189: Livo_RETI FOGNARIE - Mappatura / Ricerche perdite / Studi | D189: Sì | E189: K1 | F189: K1.1 | G189: 476635 | J189: Livo | K189: NO | M189: 2016 | N189: - | O189: - | P189: 100 | Q189: - | R189: - | S189: - | T189: - | AC189: 9750 | AD189: 0 | AE189: 0 | AF189: 0 | AG189: 0 | AH189: 0 | AI189: 0 | AJ189: 0 | AK189: 9750 | AL189: 0
B190: 203.13131.1 | C190: Locate Varesino_RETI FOGNARIE - Mappatura / Ricerche perdite / Studi | D190: Sì | E190: K1 | F190: K1.1 | G190: 476635 | J190: Locate Varesino | K190: NO | M190: 2016 | N190: - | O190: - | P190: 100 | Q190: - | R190: - | S190: - | T190: - | AC190: 9750 | AD190: 0 | AE190: 0 | AF190: 0 | AG190: 0 | AH190: 0 | AI190: 0 | AJ190: 0 | AK190: 9750 | AL190: 0
B191: 205.13133.1 | C191: Adeguamento manufatto scolmatore 2C1 - Adeguamento opera civile | D191: No | E191: C4 | F191: C4.2 | G191: 216510 | J191: Lomazzo | K191: NO | L191: Studio di fattibilità | M191: 2016 | N191: - | O191: - | P191: 1 episodio/anno per scolmatore | Q191: - | R191: - | S191: - | T191: - | AC191: 18000 | AD191: 0 | AE191: 0 | AF191: 0 | AG191: 0 | AH191: 0 | AI191: 0 | AJ191: 0 | AK191: 18000 | AL191: 0
B192: 205.13133.2 | C192: Adeguamento manufatto scolmatore 4C1 - Adeguamento opera civile | D192: Sì | E192: C4 | F192: C4.2 | G192: 216510 | J192: Lomazzo | K192: NO | L192: Studio di fattibilità | M192: 2016 | N192: - | O192: - | P192: 1 episodio/anno per scolmatore | Q192: - | R192: - | S192: - | T192: - | AC192: 6000 | AD192: 0 | AE192: 0 | AF192: 0 | AG192: 0 | AH192: 0 | AI192: 0 | AJ192: 0 | AK192: 6000 | AL192: 0
B193: 206.13133.1 | C193: Adeguamento manufatto scolmatore 1C1 - Posa regolatore di portata | D193: No | E193: C4 | F193: C4.2 | G193: 11407 | J193: Lomazzo | K193: NO | L193: Studio di fattibilità | M193: 2016 | N193: - | O193: - | P193: 1 episodio/anno per scolmatore | Q193: - | R193: - | S193: - | T193: - | AC193: 7200 | AD193: 0 | AE193: 0 | AF193: 0 | AG193: 0 | AH193: 0 | AI193: 0 | AJ193: 0 | AK193: 7200 | AL193: 0
B194: 206.13133.2 | C194: Adeguamento manufatto scolmatore 2C1 - Posa regolatore di portata | D194: No | E194: C4 | F194: C4.2 | G194: 11407 | J194: Lomazzo | K194: NO | L194: Studio di fattibilità | M194: 2016 | N194: - | O194: - | P194: 1 episodio/anno per scolmatore | Q194: - | R194: - | S194: - | T194: - | AC194: 7200 | AD194: 0 | AE194: 0 | AF194: 0 | AG194: 0 | AH194: 0 | AI194: 0 | AJ194: 0 | AK194: 7200 | AL194: 0
B195: 206.13133.3 | C195: Adeguamento manufatto scolmatore 4C1 - Posa regolatore di portata | D195: No | E195: C4 | F195: C4.2 | G195: 11407 | J195: Lomazzo | K195: NO | L195: Studio di fattibilità | M195: 2016 | N195: - | O195: - | P195: 1 episodio/anno per scolmatore | Q195: - | R195: - | S195: - | T195: - | AC195: 7200 | AD195: 0 | AE195: 0 | AF195: 0 | AG195: 0 | AH195: 0 | AI195: 0 | AJ195: 0 | AK195: 7200 | AL195: 0
B196: 106.13134.1 | C196: Manutenzione straordinaria al sistema acquedottistico comunale - lotto 2 | D196: Sì | E196: P2 | F196: P2.1 | G196: 127812 | J196: Longone al Segrino | K196: NO | L196: Progetto preliminare | M196: 2016 | N196: - | O196: - | P196: 100% giudizi almeno DISCRETO | Q196: - | R196: - | S196: - | T196: - | AC196: 77622.5 | AD196: 186243.46 | AE196: 0 | AF196: 0 | AG196: 0 | AH196: 0 | AI196: 0 | AJ196: 0 | AK196: 77622.5 | AL196: 186243.46
B197: 106.13135.1 | C197: Problematica innalzamento concentrazioni solventi nel campo pozzi all’interno del golf monticello | D197: No | E197: P2 | F197: P2.1 | G197: 127812 | J197: Luisago | K197: NO | L197: Studio di fattibilità | M197: 2016 | N197: - | O197: - | P197: 100% giudizi almeno DISCRETO | Q197: - | R197: - | S197: - | T197: - | AC197: 45250 | AD197: 0 | AE197: 0 | AF197: 0 | AG197: 0 | AH197: 0 | AI197: 0 | AJ197: 0 | AK197: 45250 | AL197: 0
B198: 107.13135.1 | C198: Mappatura rete idrica piano di ricerca perdite | D198: Sì | E198: K1 | F198: K1.1 | G198: 508066 | J198: Luisago | K198: N.A. | L198: Studio di fattibilità | M198: 2016 | N198: - | O198: - | P198: 100 | Q198: - | R198: - | S198: - | T198: - | AC198: 15600 | AD198: 0 | AE198: 0 | AF198: 0 | AG198: 0 | AH198: 0 | AI198: 0 | AJ198: 0 | AK198: 15600 | AL198: 0
B199: 203.13135.1 | C199: Luisago_RETI FOGNARIE - Mappatura / Ricerche perdite / Studi | D199: Sì | E199: K1 | F199: K1.1 | G199: 476635 | J199: Luisago | K199: NO | M199: 2016 | N199: - | O199: - | P199: 100 | Q199: - | R199: - | S199: - | T199: - | AC199: 9750 | AD199: 0 | AE199: 0 | AF199: 0 | AG199: 0 | AH199: 0 | AI199: 0 | AJ199: 0 | AK199: 9750 | AL199: 0
B200: 107.13136.1 | C200: SIMULAZIONE DINAMICA DELLA RETE, VALUTAZIONE PRESSIONI AI NOSDI E VELOCITA DEI RAMI PER PIANIIFICARE POTENZIAMENTI. | D200: Sì | E200: K1 | F200: K1.1 | G200: 508066 | J200: LURAGO D'ERBA | K200: N.A. | M200: 2016 | N200: - | O200: - | P200: 100 | Q200: - | R200: - | S200: - | T200: - | AC200: 31200 | AD200: 0 | AE200: 0 | AF200: 0 | AG200: 0 | AH200: 0 | AI200: 0 | AJ200: 0 | AK200: 31200 | AL200: 0
B201: 107.13137.1 | C201: Lurago Marinone_RICERCA PERDITE / MAPPATURA RETE / STUDI | D201: Sì | E201: K1 | F201: K1.1 | G201: 508066 | J201: Lurago Marinone | K201: N.A. | M201: 2016 | N201: - | O201: - | P201: 100 | Q201: - | R201: - | S201: - | T201: - | AC201: 9750 | AD201: 0 | AE201: 0 | AF201: 0 | AG201: 0 | AH201: 0 | AI201: 0 | AJ201: 0 | AK201: 9750 | AL201: 0
B202: 203.13137.1 | C202: Lurago Marinone_RETI FOGNARIE - Mappatura / Ricerche perdite / Studi | D202: Sì | E202: K1 | F202: K1.1 | G202: 476635 | J202: Lurago Marinone | K202: NO | M202: 2016 | N202: - | O202: - | P202: 100 | Q202: - | R202: - | S202: - | T202: - | AC202: 9750 | AD202: 0 | AE202: 0 | AF202: 0 | AG202: 0 | AH202: 0 | AI202: 0 | AJ202: 0 | AK202: 9750 | AL202: 0
... 1477 more rows
